Cogmind - Beta 10 @@@ ROGUE MODE // 2020.09.20 @ 17:43:28 Player: FarcomFLKPC Result: Establishing 0b11! Performance ------------- Evolutions (9) 4500 Regions Visited (39) 7800 Robots Destroyed (347) 1735 Value Destroyed (14679) 14679 Prototype IDs (177) 3540 Alien Tech Used (13) 2600 Bonus (56088) 56088 TOTAL SCORE: 90942 Bonus ------- Triggered Max Security 3000 High Alert Combat Kills 4408 Follower Combat Kills 4073 Entered Garrisons 800 Used RIF Installer 2000 Aligned with FarCom 300 Met Data Miner 300 Destroyed MAIN.C Guards 500 Met MAIN.C 5000 Destroyed MAIN.C Shell 5000 Destroyed MAIN.C 10000 Destroyed A8 300 Destroyed A6 400 Destroyed A5 500 Destroyed A4 700 Destroyed A3 800 Destroyed A2 1000 Destroyed Architect 15000 Win 3000 Friendly Fire -993 Cogmind --------- Core Integrity 503/1600 Matter 270/300 Energy 1677/1700 System Corruption 1% Temperature Cool (12) Movement Treading (146) Location 0b11 Command Parts ------- > --- POWER (2) -------- Vortex Chain Reactor > --- PROPULSION (6) --- Armored Heavy Treads Experimental Biometal Heavy Treads Experimental Biometal Heavy Treads > --- UTILITY (16) ----- Large Storage Unit Experimental Energy Well Spectral Analyzer Experimental Targeting Computer Experimental Targeting Computer Advanced Armor Integrity Analyzer Advanced Particle Accelerator Quantum Capacitor Experimental Powered Armor Experimental Powered Armor Heavy Regenerative Plating AEGIS Remote Shield Matter Drive > --- WEAPON (2) ------- Potential Cannon > --- INVENTORY (10) --- Improved Quantum Reactor Experimental Coolant Injector Advanced Particle Accelerator Enhanced Nova Cannon Hypervelocity Multirail Sigix Terminator Peak State ------------ > --- POWER ------------ Vortex Chain Reactor > --- PROPULSION ------- Armored Heavy Treads Experimental Biometal Heavy Treads Experimental Biometal Heavy Treads > --- UTILITY ---------- Large Storage Unit Experimental Energy Well Spectral Analyzer Experimental Targeting Computer Experimental Targeting Computer Experimental Core Analyzer Advanced Armor Integrity Analyzer Advanced Particle Accelerator Quantum Capacitor Experimental Phase Shifter Heavy Regenerative Plating AEGIS Remote Shield Matter Drive > --- WEAPON ----------- Sigix Terminator > --- INVENTORY -------- Improved Quantum Reactor Experimental Coolant Injector Experimental Energy Well Advanced Particle Accelerator Transdimensional Reconstructor Enhanced Nova Cannon Hypervelocity Multirail Gamma Refractor [Rating: 248] Favorites ----------- Power Zero-point Reactor Engine Improved Ion Engine Power Core Enhanced Nuclear Core Reactor Zero-point Reactor Propulsion Light Treads Treads Light Treads Wheel Armored Wheel Hover Unit Cooled Gravmag System Flight Unit Q-thruster Utility High-capacity Storage Unit Device AEGIS Remote Shield Storage High-capacity Storage Unit Processor Improved Armor Integrity Analyzer Hackware Deep Network Scanner Protection Improved Utility Shielding Artifact Matter Drive Weapon Makeshift Hammer Energy Gun EM Pulse Gun Energy Cannon Nova Cannon Ballistic Gun Minigun Ballistic Cannon Hypervelocity Mass Driver Launcher Mini Smartbomb Launcher Special Weapon Field Lobotomy Kit Impact Weapon Makeshift Hammer Slashing Weapon Plasma Sword Piercing Weapon Enhanced Force Lance Special Melee Weapon Improved Datajack Build | -11 -10 -10 -9 -9 -9 -8 -8 -8 -8 -8 -7 -7 -7 -7 -6 -6 -6 -6 -6 -6 -6 -5 -5 -5 -5 -4 -4 -4 -4 -4 -3 -3 -3 -2 -2 -2 -1 -1 -1 ------- Run | Scr Mat Min Mat Min Exi Min Mat Gar Mat Gar Fac Low Low Dat Pro Fac Was Fac Gar Fac Gar Fac Upp Upp War Pro Fac Upp Upp Zhi Pro Res Qua Res Tes Sec Acc Com Ac0 Slots Evolved 18 | . . . 2 . . . 2 . . . 2 . . . . 2 . . . . . 2 . . . . 2 . . . . 2 . 2 . . 2 . . Power 1 | . . . . . . . . . . . . . . . . . . . . . . . . . . . . . . . . . . 1 . . . . . Propulsion 3 | . . . . . . . 2 . . . . . . . . . . . . . . . . . . . . . . . . . . 1 . . . . . Utility 14 | . . . 2 . . . . . . . 2 . . . . 2 . . . . . 2 . . . . 2 . . . . 2 . . . . 2 . . Weapon . | . . . . . . . . . . . . . . . . . . . . . . . . . . . . . . . . . . . . . . . . Parts Attached 493 | 7 24 15 8 8 6 . 12 4 1 2 18 . 11 9 17 23 5 . 4 3 2 7 2 . 2 5 27 3 1 8 . 30 7 7 12 5 22 118 58 Power 21 | 1 2 . . . . . 1 . 1 . 1 . . . . . 1 . . . . . . . . . . 1 . 1 . 2 . 1 1 . 2 5 1 Engine 7 | 1 2 . . . . . 1 . . . . . . . . . . . . . . . . . . . . . . . . . . 1 . . 2 . . Core 5 | . . . . . . . . . 1 . 1 . . . . . 1 . . . . . . . . . . 1 . . . 1 . . . . . . . Reactor 9 | . . . . . . . . . . . . . . . . . . . . . . . . . . . . . . 1 . 1 . . 1 . . 5 1 Propulsion 83 | 2 2 . 2 2 1 . 4 1 . . 3 . 3 . . 2 . . 3 3 2 . . . . . 3 . . 1 . 8 . 4 . . 3 27 7 Treads 33 | 2 2 . 1 2 1 . 2 1 . . 1 . 2 . . 1 . . 3 . . . . . . . . . . . . . . . . . . 11 4 Leg . | . . . . . . . . . . . . . . . . . . . . . . . . . . . . . . . . . . . . . . . . Wheel 23 | . . . 1 . . . 2 . . . 2 . 1 . . 1 . . . 3 2 . . . . . 3 . . 1 . 2 . . . . . 2 3 Hover 26 | . . . . . . . . . . . . . . . . . . . . . . . . . . . . . . . . 5 . 4 . . 3 14 . Flight 1 | . . . . . . . . . . . . . . . . . . . . . . . . . . . . . . . . 1 . . . . . . . Utility 212 | 2 6 5 2 . 2 . 4 . . . 10 . 3 5 11 9 4 . 1 . . 3 2 . . 1 12 1 1 6 . 14 4 . 7 4 14 57 22 Device 100 | 1 1 1 . . . . . . . . 6 . 2 1 10 4 3 . 1 . . 1 1 . . . 5 1 . 2 . 5 2 . 6 . 9 32 6 Storage 31 | . 1 4 . . 1 . . . . . 1 . . 1 . . . . . . . 1 . . . 1 . . . 2 . 3 . . 1 1 . 12 2 Processor 17 | 1 . . . . . . . . . . 1 . 1 1 . 1 . . . . . . 1 . . . . . . . . 1 . . . . 2 3 5 Hackware 7 | . . . . . . . . . . . . . . . . 3 . . . . . . . . . . 1 . . . . 1 1 . . 1 . . . Protection 50 | . 4 . 2 . 1 . 4 . . . 2 . . 2 1 1 1 . . . . 1 . . . . 6 . 1 2 . 4 1 . . . 2 9 6 Artifact 7 | . . . . . . . . . . . . . . . . . . . . . . . . . . . . . . . . . . . . 2 1 1 3 Weapon 177 | 2 14 10 4 6 3 . 3 3 . 2 4 . 5 4 6 12 . . . . . 4 . . 2 4 12 1 . . . 6 3 2 4 1 3 29 28 Energy Gun 8 | . 3 2 . . . . . . . . . . . . . . . . . . . . . . . . . . . . . . . . . . . 3 . Energy Cannon 24 | . . . . . . . . . . . . . . . . . . . . . . . . . . . . . . . . . . . . . . 7 17 Ballistic Gun 27 | 2 3 3 1 3 . . . 1 . . . . . 1 . 1 . . . . . . . . . . . . . . . . . . . . . 2 10 Ballistic Cannon 22 | . . . . . . . . . . . 2 . 2 . 3 5 . . . . . 2 . . 1 1 3 . . . . 1 . 1 . . . 1 . Launcher 45 | . 5 3 2 3 1 . 2 2 . 1 2 . 2 2 3 4 . . . . . . . . . 1 1 . . . . 1 2 . 2 . 2 3 1 Special Weapon 14 | . 3 . . . 1 . . . . . . . 1 . . . . . . . . . . . 1 . 1 . . . . 1 . . 2 . . 4 . Impact Weapon 19 | . . 1 1 . 1 . 1 . . 1 . . . 1 . 2 . . . . . 2 . . . 2 5 . . . . 2 . . . . . . . Slashing Weapon 2 | . . . . . . . . . . . . . . . . . . . . . . . . . . . . 1 . . . 1 . . . . . . . Piercing Weapon 14 | . . . . . . . . . . . . . . . . . . . . . . . . . . . 2 . . . . . 1 1 . 1 1 8 . Special Melee Weapon 2 | . . 1 . . . . . . . . . . . . . . . . . . . . . . . . . . . . . . . . . . . 1 . Unidentified Prototypes 28 | . . . . . . . . . . . . . 1 . . 4 . . . . . . . . . . . . . 3 . . . . . . . 16 4 Parts Lost 25 | . . . . . . . . 1 . . . . . . 3 1 . . . . . . . . . . . . . . . . . . 2 4 1 5 8 Power 3 | . . . . . . . . . . . . . . . . . . . . . . . . . . . . . . . . . . . 1 1 . 1 . Propulsion 8 | . . . . . . . . . . . . . . . 1 1 . . . . . . . . . . . . . . . . . . . 1 . 2 3 Utility 9 | . . . . . . . . . . . . . . . 1 . . . . . . . . . . . . . . . . . . . 1 2 . 1 4 Weapon 5 | . . . . . . . . 1 . . . . . . 1 . . . . . . . . . . . . . . . . . . . . . 1 1 1 Highest Loss Streak 3 | . . . . . . . . 1 . . . . . . 1 1 . . . . . . . . . . . . . . . . . . 1 2 1 3 1 Average Slot Usage (%) 87 | . 99 99 99 100 99 100 92 90 90 90 91 92 94 91 91 91 95 100 93 88 81 82 83 83 83 83 85 90 90 90 90 91 94 92 93 91 82 84 70 Engine 2 | . 13 14 11 11 11 11 9 9 6 . . . . . . . . . . . . . . . . . . . . . . . . 2 2 . 6 . . Core 2 | . . . . . . . . . 2 9 6 7 7 7 7 6 6 6 6 6 6 5 5 5 5 5 5 5 5 2 . . . . . . . . . Reactor 2 | . . . . . . . . . . . . . . . . . . . . . . . . . . . . . . 2 5 3 4 4 4 6 . 6 3 Treads 11 | . 28 28 12 20 22 22 35 18 18 18 15 15 16 21 21 16 18 18 19 11 . . . . . . . . . . . . . . . . . 8 9 Wheel 7 | . . . 9 1 . . . 18 18 18 15 15 14 14 14 13 12 12 10 14 18 16 16 16 16 16 15 20 20 20 20 16 . . . . . 1 2 Hover 1 | . . . . . . . . . . . . . . . . . . . . . . . . . . . . . . . . 1 22 24 25 25 15 3 . Device 10 | . 3 . . . . . . . . . 7 7 10 6 7 6 12 12 12 12 12 11 11 11 11 11 10 15 15 11 10 12 13 12 14 14 16 19 13 Storage 17 | . 10 19 22 22 30 33 18 18 18 18 22 23 22 18 21 16 12 12 12 12 12 15 16 16 16 16 15 15 15 18 20 17 13 12 12 14 15 17 12 Processor 3 | . . . . . . . . . . . . . 3 4 . 3 . . . . . . 5 5 5 5 5 5 5 5 5 3 . . . . 3 3 13 Hackware 5 | . . . . . . . . . . . . . . . . 7 18 18 18 18 18 16 16 16 16 16 17 15 15 15 15 16 18 16 16 15 11 1 . Protection 8 | . 13 7 22 22 13 11 10 9 9 9 7 7 3 5 7 7 1 6 . . . 4 . . . . 7 5 5 5 5 5 11 12 8 2 2 11 6 Energy Gun 1 | . 12 10 . . . . . . . . . . . . . . . . . . . . . . . . . . . . . . . . . . . . . Launcher 4 | . 10 11 10 10 . 11 9 8 9 9 3 7 4 3 1 5 6 6 6 6 6 5 5 5 5 5 5 5 5 5 5 3 . 4 3 4 2 . . Impact Weapon 3 | . . . 11 11 8 11 8 9 9 8 7 7 7 3 7 5 6 6 6 6 6 4 5 5 . 5 4 . . . . 2 2 . . . . . . Naked Turns . | . . . . . . . . . . . . . . . . . . . . . . . . . . . . . . . . . . . . . . . . Heaviest Build 164 | 8 33 77 88 88 103 99 98 96 95 95 122 116 116 126 123 120 104 83 92 92 92 106 104 104 110 112 122 115 112 126 125 130 77 79 100 103 105 164 164 Greatest Support 230 | 40 40 40 40 40 40 40 80 40 24 40 40 24 24 24 24 48 24 24 80 68 68 68 68 68 68 68 76 76 76 76 76 77 101 114 106 106 122 220 230 Greatest Overweight (x) 49 | . 3 1 8 8 2 2 3 3 3 3 5 4 4 5 5 4 4 3 3 3 1 1 1 1 1 1 1 1 1 1 1 2 . 1 1 . . 49 9 Average Overweight (x) 1 | . . . 7 2 2 2 1 2 3 2 4 4 3 4 4 3 3 3 2 2 1 1 1 1 1 1 1 1 1 1 1 . . . . . . 1 1 Largest Inventory Capacity 30 | 4 10 20 20 20 26 26 26 20 20 20 26 26 26 26 26 26 20 20 20 20 20 24 24 24 24 26 26 26 26 30 30 30 18 18 18 18 18 28 28 Average Capacity 21 | 4 8 14 20 20 24 26 20 20 20 20 25 26 26 23 26 24 20 20 20 20 20 23 24 24 24 24 26 26 26 28 30 29 18 18 18 18 18 23 18 Most Carried 30 | 4 10 16 15 18 22 22 21 20 20 20 26 26 26 26 26 22 20 20 20 20 20 24 24 24 24 25 26 26 26 30 30 30 18 18 18 18 18 28 28 Average Carried 20 | . 7 12 12 15 20 22 19 19 20 20 23 26 25 22 25 20 18 18 19 19 19 22 24 24 24 24 25 25 25 27 30 28 16 17 17 17 17 22 17 Final Capacity 30 | 4 10 20 20 20 26 26 20 20 20 20 26 26 26 26 26 20 20 20 20 20 20 24 24 24 24 26 26 26 26 30 30 18 18 18 18 18 18 28 10 Final Carried 30 | 4 10 13 15 18 22 22 20 20 20 20 26 26 26 26 23 20 18 19 20 20 20 24 24 24 24 25 26 25 26 30 30 16 18 18 16 18 18 27 7 Class Distribution -------------------- 32% | Hauler-Mutant 29% | Wizard-Mutant 22% | Scavenger-Mutant 11% | Mutant 3% | Wizard-Sprinter Dominant Class ---------------- Mutant | -10/Materials Mutant | -10/Mines Hauler-Mutant | -9/Materials Hauler-Mutant | -9/Mines Hauler-Mutant | -9/Exiles Hauler-Mutant | -8/Mines Hauler-Mutant | -8/Materials Hauler-Mutant | -8/Garrison Hauler-Mutant | -8/Materials Hauler-Mutant | -8/Garrison Hauler-Mutant | -7/Factory Hauler-Mutant | -7/Lower Caves Hauler-Mutant | -7/Lower Caves Hauler-Mutant | -7/Data Miner Hauler-Mutant | -6/Proximity Caves Hauler-Mutant | -6/Factory Wizard-Assassin | -6/Waste Wizard-Mutant | -6/Factory Wizard-Mutant | -6/Garrison Wizard-Mutant | -6/Factory Wizard-Mutant | -6/Garrison Wizard-Mutant | -5/Factory Wizard-Mutant | -5/Upper Caves Wizard-Mutant | -5/Upper Caves Wizard-Mutant | -5/Warlord Wizard-Mutant | -4/Proximity Caves Wizard-Mutant | -4/Factory Wizard-Mutant | -4/Upper Caves Wizard-Mutant | -4/Upper Caves Wizard-Mutant | -4/Zhirov Wizard-Mutant | -3/Proximity Caves Wizard-Mutant | -3/Research Wizard-Sprinter | -3/Quarantine Wizard-Sprinter | -2/Research Wizard-Sprinter | -2/Testing Wizard-Sprinter | -2/Section 7 Wizard-Mutant | -1/Access Scavenger-Mutant | -1/Command Scavenger-Mutant | -1/Access_0 Resources | -11 -10 -10 -9 -9 -9 -8 -8 -8 -8 -8 -7 -7 -7 -7 -6 -6 -6 -6 -6 -6 -6 -5 -5 -5 -5 -4 -4 -4 -4 -4 -3 -3 -3 -2 -2 -2 -1 -1 -1 ----------- Run | Scr Mat Min Mat Min Exi Min Mat Gar Mat Gar Fac Low Low Dat Pro Fac Was Fac Gar Fac Gar Fac Upp Upp War Pro Fac Upp Upp Zhi Pro Res Qua Res Tes Sec Acc Com Ac0 Matter Collected 10974 | 296 374 274 72 214 133 18 187 217 . 91 93 118 174 30 575 1249 727 . 147 258 216 389 80 60 38 265 592 51 169 . 240 290 177 29 103 207 428 1770 623 Remotely . | . . . . . . . . . . . . . . . . . . . . . . . . . . . . . . . . . . . . . . . . Salvage Created 11474 | 140 441 122 145 409 . 18 226 260 . 39 135 90 152 30 337 1184 1215 . 28 20 418 445 . 109 . 335 548 . 376 . 234 108 1 59 . 87 918 1006 1839 Parts 532 | 12 38 8 11 26 . . 12 18 . 10 6 9 4 4 12 56 1 . 4 7 19 13 . 7 . 17 27 . 8 . 7 11 3 4 . 6 52 59 61 Haulers Intercepted 4 | . 2 . . . . . . . . . . . . . . . . . . . . . . . . . . . 1 . . . . . . . 1 . . Recyclers Shooed 5 | . 1 . . . . . . . . . . . . . . 4 . . . . . . . . . . . . . . . . . . . . . . . Parts Field Recycled 11 | . . . . . . . . . . . . . . . . . . . . . . . . . . . 3 . . . . . . . . . . . 8 Retrieved Matter 571 | . . . . . . . . . . . . . . . . . . . . . . . . . . . 22 . . . . . . . . . . . 549 Parts Self-Destructed 117 | . . . . . . . . . . . . 6 4 . 9 . . . . . . . 5 20 . 19 . 29 12 . 13 . . . . . . . . Prevented . | . . . . . . . . . . . . . . . . . . . . . . . . . . . . . . . . . . . . . . . . Kills | -11 -10 -10 -9 -9 -9 -8 -8 -8 -8 -8 -7 -7 -7 -7 -6 -6 -6 -6 -6 -6 -6 -5 -5 -5 -5 -4 -4 -4 -4 -4 -3 -3 -3 -2 -2 -2 -1 -1 -1 ------- Run | Scr Mat Min Mat Min Exi Min Mat Gar Mat Gar Fac Low Low Dat Pro Fac Was Fac Gar Fac Gar Fac Upp Upp War Pro Fac Upp Upp Zhi Pro Res Qua Res Tes Sec Acc Com Ac0 Combat Hostiles Destroyed 245 | . 12 4 5 13 . . 7 12 . 7 4 5 3 . 17 19 6 . 3 1 14 5 . 4 . 11 11 . 5 . 6 1 . . . 1 17 11 41 Melee 18 | . . 1 . 1 . . . . . . . . . . . . . . . . . . . . . . 2 . . . . 1 . . . 1 6 6 . Guns 15 | . 2 3 . 2 . . . 1 . . . . . . . . . . . . . . . . . . . . . . . . . . . . . . 7 Cannons 34 | . . . . . . . . . . . 1 . . . 4 2 . . . . . . . . . . . . . . . . . . . . . 2 25 AOE 171 | . 10 . 5 9 . . 7 10 . 7 3 5 3 . 13 16 6 . 3 1 14 5 . 4 . 11 9 . 5 . 6 . . . . . 11 . 8 Classes Destroyed 22 | 2 6 1 1 1 . . . 2 . . 1 . 1 . 1 1 1 . . . . . . 1 . . . . 1 . 1 . . . . . 1 . . Worker 36 | . 1 4 . 1 . 1 2 . . . 2 . . . . 11 . . . 1 . 2 . . . . 1 . . . . . 2 2 . . 2 4 . Builder 21 | . 4 . 1 4 . . 1 . . . 1 . . . . 2 . . . 1 . 1 . . . . 5 . . . . . . . . . 1 . . Tunneler 10 | 3 1 . . 1 . . . . . . . . . . . . . . . 1 . 1 . . . . 2 . . . . 1 . . . . . . . Hauler 4 | . 2 . . . . . . . . . . . . . . . . . . . . . . . . . . . 1 . . . . . . . 1 . . Recycler 15 | 1 2 . 1 . . . 1 . . . . . . . . 5 . . . . . 2 . . . . 1 . . . . . . . . . 1 1 . Minesweeper 1 | . . . . . . . . . . . . . . . . . . . . . . . . . . . . . 1 . . . . . . . . . . Mechanic 2 | . . . 1 . . . . . . . . . . . . 1 . . . . . . . . . . . . . . . . . . . . . . . Operator 4 | . . . . . . . . . . . . . . . . 1 . . . . . . . . . . 1 . . . . . . . . 1 . 1 . Drone 1 | . . . . . . . . . . . . . . . . . . . . . . . . . . . . . . . 1 . . . . . . . . Watcher 5 | . 2 . . . . . . . . . . . . . . . . . . . . . . . . . . . . . . . . . . . 2 1 . Swarmer 89 | . 3 . 4 6 . . 4 6 . 7 3 4 . . 4 13 . . 3 1 3 3 . 3 . 5 5 . . . . . . . . . 10 2 . Saboteur 1 | . . . . . . . . . . . . . . . . . . . . . . . . . . . . . . . . . . . . . 1 . . Grunt 59 | . 9 2 1 6 . . 3 2 . . . . . . 3 3 . . . . 10 . . . . 6 3 . 5 . 6 . . . . . . . . Brawler 6 | . . . . 1 . . . . . . . . . . 4 . . . . . . 1 . . . . . . . . . . . . . . . . . Duelist 4 | . . . . . . . . . . . . . 2 . 2 . . . . . . . . . . . . . . . . . . . . . . . . Protector 1 | . . . . . . . . . . . . . . . 1 . . . . . . . . . . . . . . . . . . . . . . . . Sentry 10 | . . . . . . . . 2 . . . . 1 . 1 1 . . . . . . . . . . 2 . . . . . . . . . 2 1 . Hunter 9 | . . . . . . . . 2 . . . 1 . . 1 1 . . . . . 1 . . . . 1 . . . . . . . . . . 2 . Programmer 12 | . . . . . . . . . . . 1 . . . 1 1 . . . . 1 . . . . . . . . . . . . . . 1 4 3 . Behemoth 2 | . . . . . . . . . . . . . . . . . . . . . . . . 1 . . . . . . . 1 . . . . . . . Compactor 6 | . . . . . . . . . . . . . . . . . 6 . . . . . . . . . . . . . . . . . . . . . . M Guard 2 | . . . . . . . . . . . . . . . . . . . . . . . . . . . . . . . . . . . . . . 2 . Enhanced Grunt 25 | . . . . . . . . . . . . . . . . . . . . . . . . . . . . . . . . . . . . . . . 25 Enhanced Sentry 1 | . . . . . . . . . . . . . . . . . . . . . . . . . . . . . . . . . . . . . . . 1 Enhanced Hunter 8 | . . . . . . . . . . . . . . . . . . . . . . . . . . . . . . . . . . . . . . . 8 Decomposer 2 | . . . . . . . . . . . . . 2 . . . . . . . . . . . . . . . . . . . . . . . . . . Assembled 2 | . . 2 . . . . . . . . . . . . . . . . . . . . . . . . . . . . . . . . . . . . . Best Kill Streak 16 | 4 10 2 4 5 . 1 5 7 . 7 3 4 3 . 6 16 5 . 3 4 8 4 . 3 . 3 5 . 3 . 3 1 2 1 . 1 11 4 4 Combat Bots Only 10 | . 6 2 4 5 . . 4 7 . 7 3 4 3 . 6 8 5 . 3 1 8 3 . 3 . 3 5 . 3 . 3 1 . . . 1 10 3 4 Max Kills in Single Turn 5 | 1 2 1 4 5 . 1 4 2 . 4 2 3 1 1 3 5 1 . 2 2 3 3 . 3 . 2 4 . 2 . 2 1 2 1 . 1 3 1 1 Gunslinging . | . . . . . . . . . . . . . . . . . . . . . . . . . . . . . . . . . . . . . . . . Exploded 5 | . 2 . 4 5 . . 3 2 . 4 2 3 1 . 3 5 1 . 2 1 3 2 . 3 . 2 4 . 2 . 2 . . . . . 3 . 1 Melee 1 | . . 1 . 1 . . . . . . . . . . . . . . . . . . . . . . 1 . . . . 1 . . . 1 1 1 . Uniques/NPCs Destroyed 9 | . . . . . . . . . . . . . . 1 . . . . . . . . . . . . . . . . . . . . . . . 1 7 Data Miner (-7/Data Miner) MAIN.C Shell (-1/Command) MAIN.C (-1/Command) A8 (-1/Access_0) A6 (-1/Access_0) A5 (-1/Access_0) A2 (-1/Access_0) A4 (-1/Access_0) Architect (-1/Access_0) A3 (-1/Access_0) Combat | -11 -10 -10 -9 -9 -9 -8 -8 -8 -8 -8 -7 -7 -7 -7 -6 -6 -6 -6 -6 -6 -6 -5 -5 -5 -5 -4 -4 -4 -4 -4 -3 -3 -3 -2 -2 -2 -1 -1 -1 -------- Run | Scr Mat Min Mat Min Exi Min Mat Gar Mat Gar Fac Low Low Dat Pro Fac Was Fac Gar Fac Gar Fac Upp Upp War Pro Fac Upp Upp Zhi Pro Res Qua Res Tes Sec Acc Com Ac0 Damage Taken 14491 | . 353 153 79 551 . . 211 325 . 111 77 66 28 . 1335 517 87 . 8 53 106 41 44 . . . 375 . . . . 48 51 109 471 989 787 1783 5733 Core 1364 | . 59 31 6 87 . . 42 7 . 9 . . . . 87 31 45 . . 18 . 20 . . . . 42 . . . . . . 27 48 187 34 85 499 Absorbed by Shields 7878 | . . . . . . . . . . . 25 23 12 . 409 52 . . . . . . . . . . . . . . . . . . 27 . 743 1730 4857 Reduced by Siege Mode 213 | . . . . . . . . . . . . . . . . . . . . . . . . . . . . . . . . . . . . . . 12 201 Redirected to Core 158 | . . . . . . . . . . . . . . . . . . . . . . . . . . . . . . . . . . . . 158 . . . Core Remaining (%) 80 | 100 . 64 . . . 76 . . . 89 . . . . 87 . . . . . 88 . . . . 98 . . . . 96 . 100 . . 57 . . 31 Volleys Fired 772 | 13 61 14 5 27 . . 6 17 . 5 8 3 7 4 46 47 29 . 5 . 15 10 1 3 4 13 29 3 6 1 7 . 4 4 2 6 12 92 263 Largest 2 | 2 2 2 1 1 . . 2 1 . 2 1 1 1 1 1 1 1 . 1 . 1 1 1 1 1 1 1 1 1 1 1 . 1 1 1 1 1 2 1 Hottest 200 | 40 100 65 33 30 . . 63 36 . 60 48 30 48 28 48 80 80 . 80 . 80 80 80 80 57 80 80 80 80 80 80 . 80 57 50 80 80 200 200 Shots Fired 832 | 26 75 24 5 27 . . 10 17 . 6 8 3 7 4 46 47 28 . 5 . 14 10 1 3 4 13 29 3 6 1 7 . 4 4 2 6 12 113 262 Gun 202 | 26 42 20 2 15 . . . 3 . . . . . 3 . . . . . . . . . . . . . . . . . . . . . . . 43 48 Cannon 354 | . . . . . . . . . . . 6 . 3 . 28 19 . . . . . 5 . . 4 1 6 . . . . . . 4 . . . 64 214 Launcher 253 | . 23 4 3 12 . . 10 14 . 6 2 3 4 . 18 28 28 . 5 . 14 5 1 3 . 12 22 3 6 1 7 . 2 . . 3 12 2 . Special 23 | . 10 . . . . . . . . . . . . 1 . . . . . . . . . . . . 1 . . . . . 2 . 2 3 . 4 . Kinetic 225 | 26 21 10 2 15 . . . 3 . . 6 . 3 3 28 19 . . . . . 5 . . 4 1 6 . . . . . . 4 . . . 21 48 Thermal 256 | . 10 . . . . . . . . . . . . . . . . . . . . . . . . . . . . . . . . . . . . 36 210 Explosive 244 | . 23 4 3 12 . . 10 12 . 6 2 3 4 . 18 21 28 . 5 . 14 5 1 3 . 12 22 3 6 1 7 . 2 . . 3 12 2 . Electromagnetic 94 | . 21 10 . . . . . 2 . . . . . . . 7 . . . . . . . . . . . . . . . . . . . . . 50 4 Robot Hit Streak 67 | 11 5 5 3 8 . . 9 4 . 2 5 . . 5 12 13 15 . . . 16 . . 17 . . 18 . . . . . 20 . 1 1 7 17 67 Robot Miss Streak 4 | 1 4 2 1 1 . . 1 1 . . 1 2 . 4 3 4 . . . . . . . . . . . . . . . . . . 1 2 . 2 3 Penetration Max 2 | . . . . . . . . . . . . . . . . . . . . . . . . . . . . . . . . . . . . . . . 2 Secondary Targets . | . . . . . . . . . . . . . . . . . . . . . . . . . . . . . . . . . . . . . . . . Capacitor 275 | . . . . . . . . . . . . . . . . . . . . . . . . . . . . . . . . . . . . . . 63 212 Shots Hit Robots 546 | 21 28 14 4 28 . 1 4 7 . 1 10 . 2 3 33 33 11 . . 1 1 4 . 1 . . 14 . 8 . . 4 2 5 1 4 24 80 197 Core Hits 701 | 8 39 10 8 21 . . 14 19 . 7 4 6 6 5 51 50 11 . 5 5 23 10 . 4 . 25 38 4 19 . 22 2 11 1 . 3 33 41 196 Critical Hits 110 | . . . . . . . . . . . 1 . . . 6 1 . . . . . . . . . . . . . . . . . . . . 3 9 90 Critical Kills 20 | . . . . . . . . . . . . . . . 1 . . . . . . . . . . . . . . . . . . . . . 2 1 16 Critical Parts Destroyed 52 | . . . . . . . . . . . 1 . . . 4 1 . . . . . . . . . . . . . . . . . . . . 1 4 41 Melee Attacks 361 | . . 3 3 25 . 1 12 2 . . 15 1 6 . 14 35 . 3 . 6 7 17 2 1 1 8 30 10 13 . 5 23 11 15 13 22 21 36 . Impact 215 | . . 3 3 25 . 1 12 2 . . 15 1 6 . 14 35 . 3 . 6 7 17 2 1 1 8 29 . . . . 15 9 . . . . . . Slashing 36 | . . . . . . . . . . . . . . . . . . . . . . . . . . . . 10 13 . 5 8 . . . . . . . Piercing 110 | . . . . . . . . . . . . . . . . . . . . . . . . . . . 1 . . . . . 2 15 13 22 21 36 . Sneak Attacks 60 | . . . 2 4 . 1 2 . . . 5 . 2 . . 14 . . . . . 4 . . . . 5 . 2 . . 2 . 3 . 1 6 7 . Combat Hostiles 3 | . . . . . . . . . . . . . . . . . . . . . . . . . . . . . . . . 1 . . . . 2 . . Follow-up Attacks . | . . . . . . . . . . . . . . . . . . . . . . . . . . . . . . . . . . . . . . . . Damage Inflicted 76931 | 189 1513 278 804 1477 . 105 920 937 . 502 848 338 441 57 2819 4989 4536 . 588 551 2227 1423 86 429 . 2007 3279 150 1626 . 1339 320 486 608 . 299 3471 3974 33315 Guns 1860 | 189 241 157 17 224 . . . 34 . . . . . 57 . . . . . . . . . . . . . . . . . . . . . . . 305 636 Cannons 21525 | . . . . . . . . . . . 165 . . . 540 237 . . . . . . . . . . . . . . . . . . . . . 932 19651 Explosions 42957 | . 1242 . 546 620 . . 733 872 . 502 187 338 212 . 2279 3137 4536 . 588 512 2227 1009 86 429 . 2007 2493 150 1065 . 1339 . 486 . . 13 1993 560 12796 Melee 10149 | . . . 241 613 . 105 187 31 . . 496 . 229 . . 1578 . . . 39 . 414 . . . . 786 . 561 . . 320 . 608 . 286 1478 2177 . Ramming 440 | . 30 121 . 20 . . . . . . . . . . . 37 . . . . . . . . . . . . . . . . . . . . . . 232 Kinetic 2276 | 189 66 94 17 224 . . . 34 . . 165 . . 57 540 237 . . . . . . . . . . . . . . . . . . . . . 17 636 Thermal 33699 | . . . . . . . . 49 . . . . . . . 37 . . . . . . . . . . . . . . . . . . . . . 1266 32347 Explosive 29310 | . 1242 . 546 620 . . 733 717 . 502 187 338 212 . 2279 3001 4536 . 588 512 2227 1009 86 429 . 2007 2493 150 1065 . 1339 . 486 . . 13 1993 . . Electromagnetic 1057 | . 175 63 . . . . . 106 . . . . . . . 99 . . . . . . . . . . . . . . . . . . . . . 514 100 Impact 4911 | . . . 241 613 . 105 187 31 . . 496 . 229 . . 1578 . . . 39 . 414 . . . . 758 . . . . 220 . . . . . . . Slashing 661 | . . . . . . . . . . . . . . . . . . . . . . . . . . . . . 561 . . 100 . . . . . . . Piercing 4577 | . . . . . . . . . . . . . . . . . . . . . . . . . . . 28 . . . . . . 608 . 286 1478 2177 . Highest Corruption 25 | . . 1 . . . . . . . . 1 . . . . . 25 25 25 25 25 . . . 1 . . . . . . 1 1 . 2 5 5 9 1 Average Corruption 6 | . . 1 . . . . . . . . 1 . . . . . 13 25 25 25 25 . . . 1 . . . . . . 1 1 . 1 2 4 6 1 Corruption Purged 10 | . . . . . . . . . . . 1 . . . . . . . . . . . . . . . . . . . . . . . . . . 9 . Effects 277 | . . 3 . . . . . . . . . . . . . . 13 5 15 30 44 . . . . . . . . . . 3 . . 1 6 5 142 10 Message Errors 61 | . . . . . . . . . . . . . . . . . 5 1 4 1 3 . . . . . . . . . . 1 . . . 2 . 39 5 Matter Fused 58 | . . . . . . . . . . . . . . . . . 2 1 3 7 7 . . . . . . . . . . . . . . . 2 36 . Heat Flow Errors 28 | . . . . . . . . . . . . . . . . . . . 1 5 5 . . . . . . . . . . . . . . 1 1 15 . Energy Discharges 36 | . . . . . . . . . . . . . . . . . 1 . . 2 5 . . . . . . . . . . . . . . 2 2 24 . Parts Rejected 2 | . . . . . . . . . . . . . . . . . . . . . 1 . . . . . . . . . . . . . . . . 1 . Data Loss (minor) 36 | . . 2 . . . . . . . . . . . . . . . 2 . 5 4 . . . . . . . . . . 2 . . 1 1 . 15 4 Data Loss (major) 6 | . . . . . . . . . . . . . . . . . . 1 . . . . . . . . . . . . . . . . . . . 5 . Misfires 1 | . . . . . . . . . . . . . . . . . . . . . . . . . . . . . . . . . . . . . . 1 . Misdirections 24 | . . . . . . . . . . . . . . . . . 1 . 6 6 11 . . . . . . . . . . . . . . . . . . Targeting Errors 21 | . . 1 . . . . . . . . . . . . . . 3 . 1 4 7 . . . . . . . . . . . . . . . . 5 . Weapon Failures 4 | . . . . . . . . . . . . . . . . . 1 . . . 1 . . . . . . . . . . . . . . . . 1 1 Overload Shots . | . . . . . . . . . . . . . . . . . . . . . . . . . . . . . . . . . . . . . . . . Overflow Damage 4902 | . 22 . . 295 . 65 144 59 . 12 176 . 219 . 55 744 . . 88 . 84 205 . . . 101 325 . 99 . . 78 28 134 . 68 182 159 1560 Projectiles 1151 | . . . . . . . . . . . 8 . . . . . . . . . . 17 . . . . . . . . . . . . . . . 2 1124 Explosions 1358 | . 22 . . 9 . . 2 58 . 12 . . . . 55 176 . . 88 . 84 1 . . . 101 41 . 36 . . . 28 . . . 175 34 436 Melee 2393 | . . . . 286 . 65 142 1 . . 168 . 219 . . 568 . . . . . 187 . . . . 284 . 63 . . 78 . 134 . 68 7 123 . Knockbacks 39 | . . . . 4 . 1 2 . . . 6 . . . 2 11 . . . . . 1 . . . . 5 . . . . 1 . . . . . . 6 Impact 32 | . . . . 4 . 1 2 . . . 3 . . . . 9 . . . . . 1 . . . . 5 . . . . 1 . . . . . . 6 Kinetic 7 | . . . . . . . . . . . 3 . . . 2 2 . . . . . . . . . . . . . . . . . . . . . . . Secondary . | . . . . . . . . . . . . . . . . . . . . . . . . . . . . . . . . . . . . . . . . Self-Inflicted Damage 970 | . 17 . . 96 . . 122 60 . . . 40 . . 260 10 87 . . . . . . . . . . . . . . . . . . 40 . 79 159 Shots 29 | . 1 . . 4 . . 3 2 . . . 1 . . 7 2 3 . . . . . . . . . . . . . . . . . . 1 . 1 4 Rammed 51 | . 6 12 . 3 . . . . . . . . . . . 3 . . . . . . . . . . . . . . . . . . . . . . 27 Targets Rammed 57 | . 8 16 . 3 . . . . . . . . . . . 3 . . . . . . . . . . . . . . . . . . . . . . 27 Kicked . | . . . . . . . . . . . . . . . . . . . . . . . . . . . . . . . . . . . . . . . . Crushed 6 | . 2 4 . . . . . . . . . . . . . . . . . . . . . . . . . . . . . . . . . . . . . Highest Temperature 317 | . 133 121 26 74 . . 108 26 . 18 45 . 16 . 234 284 317 . 95 253 267 64 16 16 . 48 130 65 65 24 48 . . 56 118 195 77 191 111 Average Temperature 51 | . 30 43 9 19 . . 48 8 . 4 21 . 7 . 66 68 118 . 48 109 89 32 12 12 . 18 54 37 37 18 27 . . 16 37 66 77 90 46 Received Heat Transfer 957 | . 84 75 18 123 . . 36 36 . . . . 8 . 117 69 . . . . 30 . . . . . 39 . . . . . 9 9 . 27 24 12 241 Effects 1 | . . . . . . . . . . . . . . . . . 1 . . . . . . . . . . . . . . . . . . . . . . Energy Bleed 1 | . . . . . . . . . . . . . . . . . 1 . . . . . . . . . . . . . . . . . . . . . . Siege Activations 27 | . . . . . . . . . . . . . . . . . . . . . . . . . . . . . . . . . . . . . . 1 26 Total Turns 332 | . . . . . . . . . . . . . . . . . . . . . . . . . . . . . . . . . . . . . . 8 324 Longest Duration 48 | . . . . . . . . . . . . . . . . . . . . . . . . . . . . . . . . . . . . . . 8 48 Robots Corrupted 5 | . . . . . . . . . . . . . . . . 1 . . . . . . . . . . . . . . . . . . . . . 3 1 Combat Hostiles 5 | . . . . . . . . . . . . . . . . 1 . . . . . . . . . . . . . . . . . . . . . 3 1 Parts Fried 45 | . 1 . . 7 . 1 2 . . . 3 . . . . 9 . . . . . 8 . . . . 2 . . . . . . . . . . 7 5 Impact Corruptions 79 | . . . . 10 . 3 5 1 . . 7 . 10 . . 22 . . . . . 8 . . . . 11 . . . . 1 . . . . . . 1 Robots Melted . | . . . . . . . . . . . . . . . . . . . . . . . . . . . . . . . . . . . . . . . . Combat Hostiles . | . . . . . . . . . . . . . . . . . . . . . . . . . . . . . . . . . . . . . . . . Parts Melted 1 | . . . . . . . . . . . . . . . . . . . . . . . . . . . . . . . . . . . . . . . 1 Heat Transferred 13870 | . . . . . . . . 50 . . . . . . . 50 . . . . . . . . . . . . . . . . . . . . . 481 13289 Parts Sabotaged . | . . . . . . . . . . . . . . . . . . . . . . . . . . . . . . . . . . . . . . . . Parts Stolen . | . . . . . . . . . . . . . . . . . . . . . . . . . . . . . . . . . . . . . . . . Parts Stripped . | . . . . . . . . . . . . . . . . . . . . . . . . . . . . . . . . . . . . . . . . Power Chain Reactions 3 | . . . . . . . . 1 . . . . . . . 1 . . . . . . . . . . . . . . . . . . . . . 1 . Missiles Intercepted 7 | . . . . . . . . . . . . . . . . . . . . . . . . . . . . . . . . . . . . . . 7 . Alert | -11 -10 -10 -9 -9 -9 -8 -8 -8 -8 -8 -7 -7 -7 -7 -6 -6 -6 -6 -6 -6 -6 -5 -5 -5 -5 -4 -4 -4 -4 -4 -3 -3 -3 -2 -2 -2 -1 -1 -1 ------- Run | Scr Mat Min Mat Min Exi Min Mat Gar Mat Gar Fac Low Low Dat Pro Fac Was Fac Gar Fac Gar Fac Upp Upp War Pro Fac Upp Upp Zhi Pro Res Qua Res Tes Sec Acc Com Ac0 Peak Influence 2040 | 20 288 112 138 263 . 5 275 647 315 383 297 . . . . 665 313 234 391 446 922 565 . . . . 905 . . . . 366 1766 1100 1815 2040 1434 675 . Initial 1212 | . 13 112 1 53 . . 1 180 315 204 200 . . . . 37 232 219 163 205 312 483 . . . . 157 . . . . 180 27 1100 604 1100 1212 675 . Average 331 | 11 104 34 81 85 . 1 53 545 315 302 166 . . . . 245 285 229 290 286 695 317 . . . . 440 . . . . 127 1642 1029 1712 1854 1243 307 . Maximum Alert Level 5 | . 1 . . 1 . . 1 2 1 1 1 . . . . 2 1 1 1 2 3 2 . . . . 3 . . . . 1 5 4 5 5 4 2 . Low Security (%) 42 | 100 92 100 100 80 . 100 92 1 . . 44 . . . . 49 . . 36 . . 37 . . . . 24 . . . . 83 . . . . . 17 . Level 1 41 | . 7 . . 19 . . 7 19 100 100 55 . . . . 30 100 100 63 80 13 39 . . . . 34 . . . . 16 . . . . . 80 . Level 2 6 | . . . . . . . . 79 . . . . . . . 20 . . . 19 54 22 . . . . 14 . . . . . . . . . . 1 . Level 3 3 | . . . . . . . . . . . . . . . . . . . . . 31 . . . . . 25 . . . . . . 96 . . 16 . . Level 4 2 | . . . . . . . . . . . . . . . . . . . . . . . . . . . . . . . . . . 3 . . 83 . . Level 5 . | . . . . . . . . . . . . . . . . . . . . . . . . . . . . . . . . . . . . . . . . High Security . | . . . . . . . . . . . . . . . . . . . . . . . . . . . . . . . . . . . . . . . . Max Security 3 | . . . . . . . . . . . . . . . . . . . . . . . . . . . . . . . . . 99 . 99 99 . . . Squads Dispatched 81 | . 5 . 1 1 . . . . . . 4 . . . 1 7 . . . 3 . 1 . . . . 8 . . . . 4 7 . 14 12 11 2 . Investigation 8 | . 3 . . . . . . . . . 2 . . . . . . . . . . . . . . . . . . . . 1 . . . . 2 . . Extermination 10 | . . . . . . . . . . . 2 . . . . 3 . . . 1 . . . . . . 1 . . . . 1 . . . . 1 1 . Reinforcement 21 | . 2 . 1 1 . . . . . . . . . . . 4 . . . . . 1 . . . . 4 . . . . . 1 . 2 . 4 1 . Assault 40 | . . . . . . . . . . . . . . . 1 . . . . 2 . . . . . . 2 . . . . 1 6 . 12 12 4 . . Garrison 2 | . . . . . . . . . . . . . . . . . . . . . . . . . . . 1 . . . . 1 . . . . . . . Intercept . | . . . . . . . . . . . . . . . . . . . . . . . . . . . . . . . . . . . . . . . . Construction Impeded 6 | . . . . 1 . . . . . . . . . . . 2 . . . . . . . . . . 2 . . . . . 1 . . . . . . Haulers Reinforced 4 | . . . . . . . . . . . . . . . . 1 . . . . . 1 . . . . 1 . . . . . . . . . 1 . . Stealth | -11 -10 -10 -9 -9 -9 -8 -8 -8 -8 -8 -7 -7 -7 -7 -6 -6 -6 -6 -6 -6 -6 -5 -5 -5 -5 -4 -4 -4 -4 -4 -3 -3 -3 -2 -2 -2 -1 -1 -1 --------- Run | Scr Mat Min Mat Min Exi Min Mat Gar Mat Gar Fac Low Low Dat Pro Fac Was Fac Gar Fac Gar Fac Upp Upp War Pro Fac Upp Upp Zhi Pro Res Qua Res Tes Sec Acc Com Ac0 Distress Signals 33 | . 1 . 1 . . . 1 . . . . . . . . 5 . . . . . 1 . . . . 2 . . . . . 1 . 1 1 1 18 . Communications Jammed 10 | . . . . . . . . . . . . . . . . . . . . . . . . . . . . . . . . . . . 2 8 . . . Distress Signals 10 | . . . . . . . . . . . . . . . . . . . . . . . . . . . . . . . . . . . 2 8 . . . Times Spotted 556 | . 23 4 11 19 . . 9 12 . 9 6 5 3 . 23 26 5 . 6 3 14 16 3 8 . 11 25 4 8 . 10 13 23 4 38 55 45 39 76 Peak Tracking Total 35 | . 5 2 5 7 . . 5 6 . 4 4 4 3 . 7 6 2 . 3 2 6 6 2 5 . 4 6 2 4 . 6 4 25 4 19 35 15 7 5 Tactical Retreats 32 | . . . . 4 . . 1 2 . 1 1 . . . 1 2 . . 1 . . . . . . . . . . . . 1 . . 1 2 11 2 2 Traps | -11 -10 -10 -9 -9 -9 -8 -8 -8 -8 -8 -7 -7 -7 -7 -6 -6 -6 -6 -6 -6 -6 -5 -5 -5 -5 -4 -4 -4 -4 -4 -3 -3 -3 -2 -2 -2 -1 -1 -1 ------- Run | Scr Mat Min Mat Min Exi Min Mat Gar Mat Gar Fac Low Low Dat Pro Fac Was Fac Gar Fac Gar Fac Upp Upp War Pro Fac Upp Upp Zhi Pro Res Qua Res Tes Sec Acc Com Ac0 Traps Triggered 22 | . 1 1 . . . . . 1 . 1 3 . . . . 1 . . 3 1 1 . . . . . . . . . . 2 . . . . 3 4 . Indirectly . | . . . . . . . . . . . . . . . . . . . . . . . . . . . . . . . . . . . . . . . . Trap Hack Attempts 5 | . . 5 . . . . . . . . . . . . . . . . . . . . . . . . . . . . . . . . . . . . . Triggered . | . . . . . . . . . . . . . . . . . . . . . . . . . . . . . . . . . . . . . . . . Disarmed . | . . . . . . . . . . . . . . . . . . . . . . . . . . . . . . . . . . . . . . . . Reprogrammed 2 | . . 2 . . . . . . . . . . . . . . . . . . . . . . . . . . . . . . . . . . . . . Reused . | . . . . . . . . . . . . . . . . . . . . . . . . . . . . . . . . . . . . . . . . Traps Extracted 2 | . . 2 . . . . . . . . . . . . . . . . . . . . . . . . . . . . . . . . . . . . . Installed . | . . . . . . . . . . . . . . . . . . . . . . . . . . . . . . . . . . . . . . . . Triggered 7 | . . . . . . . . . . . . . . . . . . . . . . . . . . . . . . . 6 . . . . . . 1 . Machines | -11 -10 -10 -9 -9 -9 -8 -8 -8 -8 -8 -7 -7 -7 -7 -6 -6 -6 -6 -6 -6 -6 -5 -5 -5 -5 -4 -4 -4 -4 -4 -3 -3 -3 -2 -2 -2 -1 -1 -1 ---------- Run | Scr Mat Min Mat Min Exi Min Mat Gar Mat Gar Fac Low Low Dat Pro Fac Was Fac Gar Fac Gar Fac Upp Upp War Pro Fac Upp Upp Zhi Pro Res Qua Res Tes Sec Acc Com Ac0 Machines Disabled 75 | . 4 . . . . . 1 1 . . . . . . . 16 . . 1 4 4 . . . . 3 2 . . 1 . . 5 . 2 8 1 3 19 Max in Single Turn 4 | . 1 . . . . . 1 1 . . . . . . . 3 . . 1 2 1 . . . . 1 . . . 1 . . 1 . 1 1 1 1 4 Garrison Access 5 | . . . . . . . . . . . . . . . . 1 . . . . . . . . . . 1 . . . . 1 . . . . 2 . . Garrison Relay 1 | . . . . . . . . . . . . . . . . . . . . . 1 . . . . . . . . . . . . . . . . . . Machines Sabotaged . | . . . . . . . . . . . . . . . . . . . . . . . . . . . . . . . . . . . . . . . . Garrisons Compromised . | . . . . . . . . . . . . . . . . . . . . . . . . . . . . . . . . . . . . . . . . Overloaded Fab Kills . | . . . . . . . . . . . . . . . . . . . . . . . . . . . . . . . . . . . . . . . . Fab Network Shutdowns . | . . . . . . . . . . . . . . . . . . . . . . . . . . . . . . . . . . . . . . . . Hacking | -11 -10 -10 -9 -9 -9 -8 -8 -8 -8 -8 -7 -7 -7 -7 -6 -6 -6 -6 -6 -6 -6 -5 -5 -5 -5 -4 -4 -4 -4 -4 -3 -3 -3 -2 -2 -2 -1 -1 -1 --------- Run | Scr Mat Min Mat Min Exi Min Mat Gar Mat Gar Fac Low Low Dat Pro Fac Was Fac Gar Fac Gar Fac Upp Upp War Pro Fac Upp Upp Zhi Pro Res Qua Res Tes Sec Acc Com Ac0 Machines Accessed 103 | . 8 1 2 . 2 . 6 . 1 . 3 . . 4 . 6 . 2 . 5 . 11 . . . . 9 1 1 4 . 8 . 3 . . 11 15 . Terminals 57 | . 5 . . . . . 4 . . . 1 . . . . 4 . . . 3 . 6 . . . . 4 1 1 . . 5 . 2 . . 9 12 . Fabricators 6 | . . . . . . . . . . . . . . . . 1 . 1 . . . 3 . . . . 1 . . . . . . . . . . . . Repair Stations 6 | . 1 . 1 . . . . . . . . . . . . . . . . . . . . . . . . . . . . 1 . . . . . 3 . Recycling Units 7 | . 2 . . . . . . . . . 1 . . . . . . . . . . 2 . . . . 2 . . . . . . . . . . . . Scanalyzers 6 | . . . 1 . . . 1 . . . 1 . . . . . . . . 1 . . . . . . 1 . . . . 1 . . . . . . . Garrison Access 10 | . . . . . . . 1 . 1 . . . . . . 1 . 1 . 1 . . . . . . 1 . . . . 1 . 1 . . 2 . . Total Hacks 550 | . 23 1 4 . 2 . 24 . 2 . 7 . . 32 . 33 . 11 . 53 . 88 . . . . 46 14 15 17 . 58 . 22 . . 47 51 . Successful 368 | . 13 1 4 . 2 . 16 . 2 . 3 . . 32 . 20 . 4 . 35 . 59 . . . . 36 9 11 17 . 34 . 13 . . 22 35 . Failed 180 | . 10 . . . . . 8 . . . 4 . . . . 12 . 7 . 18 . 29 . . . . 9 5 4 . . 24 . 9 . . 25 16 . Catastrophic 22 | . 1 . . . . . . . . . 2 . . . . 1 . 2 . . . 1 . . . . 1 . . . . 1 . 2 . . 11 . . Database Lockouts 2 | . . . . . . . . . . . . . . . . 1 . . . . . . . . . . 1 . . . . . . . . . . . . Manual 219 | . 10 . . . 1 . 8 . . . . . . . . 23 . 8 . 17 . 34 . . . . 25 14 15 . . 17 . 11 . . 18 18 . Terminals 346 | . 16 . . . . . 15 . . . 2 . . . . 28 . . . 33 . 59 . . . . 25 14 15 . . 35 . 19 . . 43 42 . Fabricators 33 | . . . . . . . . . . . . . . . . 4 . 4 . . . 18 . . . . 7 . . . . . . . . . . . . Repair Stations 18 | . 2 . 2 . . . . . . . . . . . . . . . . . . . . . . . . . . . . 5 . . . . . 9 . Recycling Units 24 | . 5 . . . . . . . . . 3 . . . . . . . . . . 11 . . . . 5 . . . . . . . . . . . . Scanalyzers 45 | . . . 2 . . . 7 . . . 2 . . . . . . . . 17 . . . . . . 4 . . . . 13 . . . . . . . Garrison Access 32 | . . . . . . . 2 . 2 . . . . . . 1 . 7 . 3 . . . . . . 5 . . . . 5 . 3 . . 4 . . Terminal Hacks 221 | . 3 1 . . 2 . 7 . . . . . . 32 . 13 . . . 19 . 30 . . . . 13 9 11 17 . 18 . 9 . . 15 22 . Record 17 | . . . . . 1 . . . . . . . . 11 . . . . . . . . . . . . . . . 5 . . . . . . . . . Part Schematic 26 | . . . . . . . . . . . . . . 9 . . . . . 2 . 7 . . . . . 4 . 4 . . . . . . . . . Robot Schematic 10 | . . . . . . . . . . . . . . 9 . . . . . 1 . . . . . . . . . . . . . . . . . . . Robot Analysis 6 | . . . . . . . . . . . . . . . . . . . . . . 1 . . . . . . . 4 . . . . . . 1 . . Prototype ID Bank 64 | . 2 . . . . . 1 . . . . . . 3 . 9 . . . 7 . 12 . . . . 2 5 11 4 . 2 . 2 . . . 4 . Open Door 7 | . . 1 . . . . . . . . . . . . . . . . . . . . . . . . 1 . . . . 1 . . . . 3 1 . Level Access Points 2 | . . . . . . . . . . . . . . . . . . . . 1 . . . . . . . . . . . 1 . . . . . . . Branch Access Points 6 | . 1 . . . . . . . . . . . . . . 1 . . . . . 1 . . . . 1 . . . . 1 . 1 . . . . . Emergency Access Points 4 | . . . . . . . . . . . . . . . . . . . . . . 1 . . . . 1 . . . . . . . . . . 2 . Machine Index 6 | . . . . . . . . . . . . . . . . . . . . 1 . 1 . . . . 1 . . . . 1 . . . . 1 1 . Terminal Index 3 | . . . . . . . . . . . . . . . . . . . . 1 . . . . . . . . . . . . . 1 . . . 1 . Garrison Index 2 | . . . . . . . 1 . . . . . . . . 1 . . . . . . . . . . . . . . . . . . . . . . . Unreport Threat 19 | . . . . . . . . . . . . . . . . 1 . . . . . 3 . . . . 1 . . . . 3 . 1 . . 6 4 . Locate Traps 12 | . . . . . . . 1 . . . . . . . . . . . . 1 . . . . . . 1 . . . . 1 . 2 . . 1 5 . Dispatch Records 1 | . . . . . . . . . . . . . . . . . . . . . . . . . . . . . . . . 1 . . . . . . . Security Status 1 | . . . . . . . . . . . . . . . . . . . . . . . . . . . . . . . . . . . . . . 1 . Patrol Status 5 | . . . . . . . 1 . . . . . . . . . . . . 1 . . . . . . . . . . . 1 . . . . 1 1 . Transport Status 1 | . . . . . . . . . . . . . . . . . . . . . . 1 . . . . . . . . . . . . . . . . . Recall Investigation 1 | . . . . . . . . . . . . . . . . . . . . . . . . . . . . . . . . 1 . . . . . . . Recall Extermination 3 | . . . . . . . . . . . . . . . . . . . . 1 . . . . . . 1 . . . . 1 . . . . . . . Recall Assault 1 | . . . . . . . . . . . . . . . . . . . . . . . . . . . . . . . . 1 . . . . . . . Hauler Manifests 6 | . . . . . . . 1 . . . . . . . . . . . . 1 . 1 . . . . 1 . . . . 1 . 1 . . . . . Registered Components 2 | . . . . . . . . . . . . . . . . . . . . 1 . . . . . . . . . . . . . . . . . 1 . Registered Prototypes 2 | . . . . . . . . . . . . . . . . . . . . . . 1 . . . . . . . . . . . . . . . 1 . Zone Layout 13 | . . . . . . . 2 . . . . . . . . 1 . . . 1 . 1 . . . . 3 . . . . 2 . 1 . . 2 . . EX-Prototype ID Bank 1 | . . . . . 1 . . . . . . . . . . . . . . . . . . . . . . . . . . . . . . . . . . Fabricator Hacks 20 | . . . . . . . . . . . . . . . . 3 . 2 . . . 11 . . . . 4 . . . . . . . . . . . . Network Status 1 | . . . . . . . . . . . . . . . . . . . . . . 1 . . . . . . . . . . . . . . . . . Load Schematic 7 | . . . . . . . . . . . . . . . . 1 . 1 . . . 4 . . . . 1 . . . . . . . . . . . . Build 12 | . . . . . . . . . . . . . . . . 2 . 1 . . . 6 . . . . 3 . . . . . . . . . . . . Repair Station Hacks 12 | . 2 . 2 . . . . . . . . . . . . . . . . . . . . . . . . . . . . 2 . . . . . 6 . Scan Component 6 | . 1 . 1 . . . . . . . . . . . . . . . . . . . . . . . . . . . . 1 . . . . . 3 . Repair 6 | . 1 . 1 . . . . . . . . . . . . . . . . . . . . . . . . . . . . 1 . . . . . 3 . Recycling Unit Hacks 20 | . 3 . . . . . . . . . 3 . . . . . . . . . . 9 . . . . 5 . . . . . . . . . . . . Recycle Component 1 | . . . . . . . . . . . . . . . . . . . . . . 1 . . . . . . . . . . . . . . . . . Process 5 | . . . . . . . . . . . 1 . . . . . . . . . . 3 . . . . 1 . . . . . . . . . . . . Report Inventory 6 | . 2 . . . . . . . . . . . . . . . . . . . . 2 . . . . 2 . . . . . . . . . . . . Retrieve Matter 5 | . . . . . . . . . . . 2 . . . . . . . . . . 2 . . . . 1 . . . . . . . . . . . . Retrieve Components 3 | . 1 . . . . . . . . . . . . . . . . . . . . 1 . . . . 1 . . . . . . . . . . . . Scanalyzer 28 | . . . 2 . . . 5 . . . . . . . . . . . . 9 . . . . . . 4 . . . . 8 . . . . . . . Insert Component 15 | . . . 1 . . . 2 . . . . . . . . . . . . 5 . . . . . . 2 . . . . 5 . . . . . . . Analyze 13 | . . . 1 . . . 3 . . . . . . . . . . . . 4 . . . . . . 2 . . . . 3 . . . . . . . Garrison Access Hacks 16 | . . . . . . . 2 . 2 . . . . . . 1 . 1 . 2 . . . . . . 1 . . . . 1 . 2 . . 4 . . Unlock Access 4 | . . . . . . . 1 . 1 . . . . . . . . 1 . 1 . . . . . . . . . . . . . . . . . . . Seal Access 3 | . . . . . . . . . . . . . . . . 1 . . . . . . . . . . . . . . . . . . . . 2 . . Coupler Status 9 | . . . . . . . 1 . 1 . . . . . . . . . . 1 . . . . . . 1 . . . . 1 . 2 . . 2 . . Unauthorized Hacks 51 | . 5 . . . . . 2 . . . . . . . . 3 . 1 . 5 . 9 . . . . 9 . . . . 5 . 2 . . 3 7 . Terminals 31 | . 3 . . . . . 2 . . . . . . . . 2 . . . 4 . 3 . . . . 4 . . . . 2 . 1 . . 3 7 . Track 4 | . 3 . . . . . . . . . . . . . . . . . . . . . . . . . . . . . . . . . . . . 1 . Assimilate 6 | . . . . . . . . . . . . . . . . . . . . 1 . . . . . . 3 . . . . . . . . . 2 . . Botnet 17 | . . . . . . . 2 . . . . . . . . 2 . . . 1 . 3 . . . . . . . . . 2 . 1 . . 1 5 . Detonate 1 | . . . . . . . . . . . . . . . . . . . . 1 . . . . . . . . . . . . . . . . . . . Disrupt 3 | . . . . . . . . . . . . . . . . . . . . 1 . . . . . . 1 . . . . . . . . . . 1 . Fabricators 8 | . . . . . . . . . . . . . . . . 1 . 1 . . . 4 . . . . 2 . . . . . . . . . . . . Report 1 | . . . . . . . . . . . . . . . . . . . . . . 1 . . . . . . . . . . . . . . . . . Prioritize 5 | . . . . . . . . . . . . . . . . 1 . 1 . . . 2 . . . . 1 . . . . . . . . . . . . Siphon 2 | . . . . . . . . . . . . . . . . . . . . . . 1 . . . . 1 . . . . . . . . . . . . Repair Stations . | . . . . . . . . . . . . . . . . . . . . . . . . . . . . . . . . . . . . . . . . Recycling Units 4 | . 2 . . . . . . . . . . . . . . . . . . . . 2 . . . . . . . . . . . . . . . . . Mask 2 | . . . . . . . . . . . . . . . . . . . . . . 2 . . . . . . . . . . . . . . . . . Tunnel 2 | . 2 . . . . . . . . . . . . . . . . . . . . . . . . . . . . . . . . . . . . . . Scanalyzers . | . . . . . . . . . . . . . . . . . . . . . . . . . . . . . . . . . . . . . . . . Garrison Access 8 | . . . . . . . . . . . . . . . . . . . . 1 . . . . . . 3 . . . . 3 . 1 . . . . . Broadcast 2 | . . . . . . . . . . . . . . . . . . . . . . . . . . . 1 . . . . 1 . . . . . . . Restock 1 | . . . . . . . . . . . . . . . . . . . . . . . . . . . 1 . . . . . . . . . . . . Reprogram 5 | . . . . . . . . . . . . . . . . . . . . 1 . . . . . . 1 . . . . 2 . 1 . . . . . Data Cores Recovered 1 | . . . . . . . . . . . . . . . . . . . . . . . . . . . . . . . . 1 . . . . . . . Used 1 | . . . . . . . . . . . . . . . . . . . . . . . . . . . . . . . . 1 . . . . . . . Hacking Detections 71 | . 5 . 2 . . . 6 . . . 2 . . . . 5 . 1 . 3 . 8 . . . . 5 1 1 . . 6 . 3 . . 11 12 . Full Trace Events 6 | . 1 . . . . . . . . . 2 . . . . . . . . . . . . . . . . . . . . 1 . . . . 2 . . Feedback Events . | . . . . . . . . . . . . . . . . . . . . . . . . . . . . . . . . . . . . . . . . Feedback Blocked . | . . . . . . . . . . . . . . . . . . . . . . . . . . . . . . . . . . . . . . . . Robot Schematics Acquired 10 | . . . . . . . . . . . . . . 9 . . . . . 1 . . . . . . . . . . . . . . . . . . . Robots Built 4 | . . . . . . . . . . . . . . . . . . . . . . 4 . . . . . . . . . . . . . . . . . Matter 252 | . . . . . . . . . . . . . . . . . . . . . . 252 . . . . . . . . . . . . . . . . . Time 134 | . . . . . . . . . . . . . . . . . . . . . . 134 . . . . . . . . . . . . . . . . . Total Robot Build Rating 16 | . . . . . . . . . . . . . . . . . . . . . . 16 . . . . . . . . . . . . . . . . . Part Schematics Acquired 38 | . . . 1 . . . 2 . . . . . . 9 . . . . . 6 . 7 . . . . 2 4 . 4 . 3 . . . . . . . Parts Built 8 | . . . . . . . . . . . . . . . . 2 . 1 . . . 3 . . . . 2 . . . . . . . . . . . . Matter 2462 | . . . . . . . . . . . . . . . . 636 . 318 . . . 794 . . . . 714 . . . . . . . . . . . . Time 1011 | . . . . . . . . . . . . . . . . 253 . 84 . . . 337 . . . . 337 . . . . . . . . . . . . Total Part Build Rating 48 | . . . . . . . . . . . . . . . . 12 . 6 . . . 18 . . . . 12 . . . . . . . . . . . . Parts Repaired 6 | . 1 . 1 . . . . . . . . . . . . . . . . . . . . . . . . . . . . 1 . . . . . 3 . Time 158 | . 26 . 26 . . . . . . . . . . . . . . . . . . . . . . . . . . . . 44 . . . . . 62 . Parts Recycled 1 | . . . . . . . . . . . . . . . . . . . . . . 1 . . . . . . . . . . . . . . . . . Recycled Matter 354 | . . . . . . . . . . . . . . . . . . . . . . 55 . . . . 299 . . . . . . . . . . . . Retrieved Matter 354 | . . . . . . . . . . . . . . . . . . . . . . 55 . . . . 299 . . . . . . . . . . . . Retrieved Components 7 | . 3 . . . . . . . . . . . . . . . . . . . . 3 . . . . 1 . . . . . . . . . . . . Parts Scanalyzed 12 | . . . 1 . . . 2 . . . . . . . . . . . . 4 . . . . . . 2 . . . . 3 . . . . . . . Part Schematics Acquired 12 | . . . 1 . . . 2 . . . . . . . . . . . . 4 . . . . . . 2 . . . . 3 . . . . . . . Parts Damaged 1 | . . . . . . . . . . . . . . . . . . . . . . . . . . . . . . . . 1 . . . . . . . Bothacking | -11 -10 -10 -9 -9 -9 -8 -8 -8 -8 -8 -7 -7 -7 -7 -6 -6 -6 -6 -6 -6 -6 -5 -5 -5 -5 -4 -4 -4 -4 -4 -3 -3 -3 -2 -2 -2 -1 -1 -1 ------------ Run | Scr Mat Min Mat Min Exi Min Mat Gar Mat Gar Fac Low Low Dat Pro Fac Was Fac Gar Fac Gar Fac Upp Upp War Pro Fac Upp Upp Zhi Pro Res Qua Res Tes Sec Acc Com Ac0 Used RIF Installer 4 | . . . . . . . . 1 . 1 . . . . . . . . 1 . 1 . . . . . . . . . . . . . . . . . . Coupler Efficiency 1 | . . . . . . . . . . . . . . . . . . . . . 1 . . . . . . . . . . . . . . . . . . Command Fork 1 | . . . . . . . . . . 1 . . . . . . . . . . . . . . . . . . . . . . . . . . . . . Signal Jammer 1 | . . . . . . . . . . . . . . . . . . . 1 . . . . . . . . . . . . . . . . . . . . Robots Hacked 4 | . . . . . . . . . . . . . . . . . . . . . . . . . . . 1 . . . . . 1 . 1 1 . . . Non-combat 1 | . . . . . . . . . . . . . . . . . . . . . . . . . . . 1 . . . . . . . . . . . . Combat 3 | . . . . . . . . . . . . . . . . . . . . . . . . . . . . . . . . . 1 . 1 1 . . . Robot Hacks Applied 4 | . . . . . . . . . . . . . . . . . . . . . . . . . . . 1 . . . . . 1 . 1 1 . . . find_chute 1 | . . . . . . . . . . . . . . . . . . . . . . . . . . . 1 . . . . . . . . . . . . locate_prototypes 3 | . . . . . . . . . . . . . . . . . . . . . . . . . . . . . . . . . 1 . 1 1 . . . Relay Couplers Released 11 | . . . . . . . . . . . . . . . . . . . . . 3 . . . . . 5 . . . . 1 . . . . 2 . . Machine Destruction 7 | . . . . . . . . . . . . . . . . . . . . . 3 . . . . . 1 . . . . 1 . . . . 2 . . Programmers 4 | . . . . . . . . . . . . . . . . . . . . . . . . . . . 4 . . . . . . . . . . . . Attached 1 | . . . . . . . . . . . . . . . . . . . . . . . . . . . . . . . . . 1 . . . . . . Robots Rewired 2 | . . . . . . . . . . . . . . . 2 . . . . . . . . . . . . . . . . . . . . . . . . Allies Hacked 3 | . . . . . . . . . . . . . . . . . . . . . . . . . . . . . . . . . . . . . . 3 . Hacks Repelled . | . . . . . . . . . . . . . . . . . . . . . . . . . . . . . . . . . . . . . . . . Allies | -11 -10 -10 -9 -9 -9 -8 -8 -8 -8 -8 -7 -7 -7 -7 -6 -6 -6 -6 -6 -6 -6 -5 -5 -5 -5 -4 -4 -4 -4 -4 -3 -3 -3 -2 -2 -2 -1 -1 -1 -------- Run | Scr Mat Min Mat Min Exi Min Mat Gar Mat Gar Fac Low Low Dat Pro Fac Was Fac Gar Fac Gar Fac Upp Upp War Pro Fac Upp Upp Zhi Pro Res Qua Res Tes Sec Acc Com Ac0 Total Allies 21 | . . . . 1 . . . . . . . . . 1 2 . 1 . . 1 . 4 . . . . 1 . . . . 2 . . . . 2 6 . Largest Group 5 | . . . . 1 . . . . . . . . . 1 1 . 1 . . 1 1 5 2 2 2 . 1 . . . . 2 . . . . 1 5 . Highest-Rated Group 338 | . . . . 31 . . . . . . . . . 59 32 . 31 . . 26 26 74 38 38 38 . 49 . . . . 94 . . . . 44 338 . Highest-Rated Ally 157 | . . . . 31 . . . . . . . . . 59 32 . 31 . . 26 26 26 26 26 26 . 49 . . . . 47 . . . . 44 157 . Total Orders 96 | . . . . . . . . . . . . . . 3 . . . . 5 2 1 9 3 2 . 3 25 1 4 1 3 24 . . . . . 10 . STAY 10 | . . . . . . . . . . . . . . 2 . . . . . . . . . . . . . . . 1 . 2 . . . . . 5 . FOLLOW 11 | . . . . . . . . . . . . . . 1 . . . . . . . 1 . . . . 3 . . . . 1 . . . . . 5 . EXPLORE 4 | . . . . . . . . . . . . . . . . . . . . . . . . . . . 2 . . . . 2 . . . . . . . RETURN 71 | . . . . . . . . . . . . . . . . . . . 5 2 1 8 3 2 . 3 20 1 4 . 3 19 . . . . . . . Ally Attacks 778 | . . . . 7 . . . . . . . . . . 1 . 2 . 33 4 21 77 44 43 2 29 147 36 58 . 35 134 . . 6 . . 99 . Total Damage 16428 | . . . . 147 . . . . . . . . . . 44 . 42 . 527 94 297 1483 742 948 23 473 3395 699 885 . 752 3006 . . 96 . . 2775 . Kills 102 | . . . . . . . . . . . . . . . . . . . 4 1 5 15 3 7 . 7 19 9 5 . 4 16 . . 1 . . 6 . Allies Corrupted 7 | . . . . . . . . . . . . . . . . . . . . . . 1 . . 4 . . . . . 1 1 . . . . . . . Allies Melted . | . . . . . . . . . . . . . . . . . . . . . . . . . . . . . . . . . . . . . . . . Field Lobotomies 5 | . . . . . . . . . . . . . . 1 . . . . . . . . . . . . . . . . . . . . . . . 4 . Intel | -11 -10 -10 -9 -9 -9 -8 -8 -8 -8 -8 -7 -7 -7 -7 -6 -6 -6 -6 -6 -6 -6 -5 -5 -5 -5 -4 -4 -4 -4 -4 -3 -3 -3 -2 -2 -2 -1 -1 -1 ------- Run | Scr Mat Min Mat Min Exi Min Mat Gar Mat Gar Fac Low Low Dat Pro Fac Was Fac Gar Fac Gar Fac Upp Upp War Pro Fac Upp Upp Zhi Pro Res Qua Res Tes Sec Acc Com Ac0 Robot Analysis Total 6 | . . . . . . . . . . . . . . . . . . . . . . 1 . . . . . . . 4 . . . . . . 1 . . Derelict Logs Recovered 12 | . . 1 . 1 . . . . . . . 2 . . 1 . . . . . . . 1 2 . 1 . 2 1 . . . . . . . . . . Drone Launches 106 | . . . . . . . . . . . . . . . . . . . 6 2 2 22 3 1 2 4 29 1 4 . 5 23 . . 2 . . . . Drone Recoveries 94 | . . . . . . . . . . . . . . . . . . . 6 2 2 14 3 3 . 4 25 1 4 . 7 23 . . . . . . . Exploration | -11 -10 -10 -9 -9 -9 -8 -8 -8 -8 -8 -7 -7 -7 -7 -6 -6 -6 -6 -6 -6 -6 -5 -5 -5 -5 -4 -4 -4 -4 -4 -3 -3 -3 -2 -2 -2 -1 -1 -1 ------------- Run | Scr Mat Min Mat Min Exi Min Mat Gar Mat Gar Fac Low Low Dat Pro Fac Was Fac Gar Fac Gar Fac Upp Upp War Pro Fac Upp Upp Zhi Pro Res Qua Res Tes Sec Acc Com Ac0 Turns Passed 27619 | 153 1109 1439 227 1331 714 384 638 272 36 160 719 380 370 292 878 1047 224 124 204 367 535 820 286 463 128 588 949 501 512 197 331 776 110 134 206 259 654 5955 3147 Spaces Moved 19524 | 78 579 632 118 610 350 192 314 183 28 116 401 286 237 190 500 629 129 81 130 300 452 644 255 428 106 496 672 451 454 161 295 689 216 290 578 726 1119 3816 1593 Core 184 | 19 111 . . . . . . . . . . . . . . . . . . . . . . . . . . . . . . . . . . . . 54 . Treads 5186 | 59 468 632 13 539 350 192 304 1 . 3 1 . . . . 1 . . 29 . . . . . . . . . . . . . . . . . . 1488 1106 Legs . | . . . . . . . . . . . . . . . . . . . . . . . . . . . . . . . . . . . . . . . . Wheels 9612 | . . . 105 71 . . 10 182 28 113 400 286 237 190 500 628 129 81 101 300 452 644 255 428 106 496 672 451 454 161 295 600 . . . . . 750 487 Hover 4542 | . . . . . . . . . . . . . . . . . . . . . . . . . . . . . . . . 89 216 290 578 726 1119 1524 . Flight . | . . . . . . . . . . . . . . . . . . . . . . . . . . . . . . . . . . . . . . . . Fastest Speed 17 | 50 50 160 160 160 200 200 120 120 120 120 130 130 120 130 130 120 120 120 120 106 106 106 106 106 106 106 102 102 102 102 102 30 17 17 18 18 30 40 120 Average Speed 117 | 133 145 175 165 195 200 200 178 120 120 122 132 130 129 131 137 127 122 120 133 114 106 106 106 106 106 106 105 102 102 102 102 93 28 25 24 23 40 139 144 Slowest Speed 2500 | 160 200 180 240 200 200 200 200 200 120 200 200 130 130 140 140 200 130 120 180 120 106 106 106 106 106 106 106 102 102 102 102 110 30 92 90 25 43 2500 210 Overloaded Moves 680 | . . . . . . . . . . . . . . . . . . . . . . . . . . . . . . . . . 20 7 156 229 255 13 . Propulsion Burnouts . | . . . . . . . . . . . . . . . . . . . . . . . . . . . . . . . . . . . . . . . . Robots Hopped . | . . . . . . . . . . . . . . . . . . . . . . . . . . . . . . . . . . . . . . . . Cave-ins Triggered . | . . . . . . . . . . . . . . . . . . . . . . . . . . . . . . . . . . . . . . . . Teleports 7 | . . . . . . . . . . . . . . . . . . . . . . . . . . . . . . . . . . . 2 2 1 1 1 Exploration Rate (%) 48 | 5 89 97 18 97 68 65 32 41 6 34 16 59 34 74 66 22 82 3 30 14 64 18 53 65 17 75 19 68 74 60 69 25 31 10 75 53 44 91 72 Regions Visited 39 Branch Regions 21 Pre-discovered Areas 12 | . 2 1 . 1 1 . . . . . . . . 1 1 . . . . . . . . . . . . 2 . 3 . . . . . . . . . Known Exits Taken 20 | . 1 . . . . . 1 . 1 . 1 . 1 . . . . 1 . 1 . 1 1 1 1 1 1 1 1 1 1 1 1 1 . . . . . Unknown Exits Taken 13 | 1 . 1 1 1 1 1 . . . . . 1 . 1 1 . . . . . . . . . . . . . . . . . . . 1 1 1 1 . Scrap Searched 15 | . . 2 . 1 . . . . . . . 1 4 . . . . . . . . . . 2 . 2 . 2 . . 1 . . . . . . . . Spaces Dug 399 | . 33 19 . 25 . . 10 32 . 23 10 8 13 . 30 21 . 3 8 3 1 14 2 1 3 8 21 10 . . 5 17 4 8 11 32 . 9 15 Terrain Destroyed 3541 | . 119 31 28 107 . . 74 72 . 60 18 23 30 . 106 269 182 3 69 36 109 74 20 46 6 180 241 60 54 15 64 17 38 9 11 62 115 25 1168 Melee 168 | . . 2 . 1 . . 10 . . . 9 1 4 . 14 14 . 3 . 3 1 13 2 1 1 8 17 10 . . 5 17 4 7 11 9 . 1 . Projectile 93 | . 9 . . . . . . . . . 1 . 4 . 7 4 . . . . . 3 . . 5 1 8 . . . . . . 2 . . . 18 31 AOE 3280 | . 110 29 28 106 . . 64 72 . 60 8 22 22 . 85 251 182 . 69 33 108 58 18 45 . 171 216 50 54 15 59 . 34 . . 53 115 6 1137 Terrain Rammed . | . . . . . . . . . . . . . . . . . . . . . . . . . . . . . . . . . . . . . . . . Walls Destroyed . | . . . . . . . . . . . . . . . . . . . . . . . . . . . . . . . . . . . . . . . . Machines Disabled . | . . . . . . . . . . . . . . . . . . . . . . . . . . . . . . . . . . . . . . . . Actions | -11 -10 -10 -9 -9 -9 -8 -8 -8 -8 -8 -7 -7 -7 -7 -6 -6 -6 -6 -6 -6 -6 -5 -5 -5 -5 -4 -4 -4 -4 -4 -3 -3 -3 -2 -2 -2 -1 -1 -1 --------- Run | Scr Mat Min Mat Min Exi Min Mat Gar Mat Gar Fac Low Low Dat Pro Fac Was Fac Gar Fac Gar Fac Upp Upp War Pro Fac Upp Upp Zhi Pro Res Qua Res Tes Sec Acc Com Ac0 Total 23186 | 103 746 922 139 695 364 192 377 215 30 127 565 290 283 229 625 785 168 106 157 321 488 756 266 432 115 532 851 474 479 192 309 811 256 332 634 800 1300 4402 2318 Wait 1314 | . 45 217 1 16 . . . 5 . 3 104 1 17 8 34 42 1 17 1 2 . 67 7 1 3 8 78 6 . 10 3 31 . 13 16 21 91 156 289 Move 19487 | 77 578 631 117 609 349 191 314 182 28 115 400 285 236 189 499 629 128 80 129 299 451 643 254 427 105 495 671 450 453 160 294 688 215 289 577 725 1118 3815 1592 Hop . | . . . . . . . . . . . . . . . . . . . . . . . . . . . . . . . . . . . . . . . . Pick Up 237 | 4 15 11 4 5 6 . 13 1 . . 13 . 1 10 1 3 2 3 1 3 3 6 . . . 2 7 . 3 6 . 14 8 1 5 8 8 50 20 Fast Attach 151 | 7 5 2 1 . 1 . 4 . 1 . 3 . 5 1 . 2 . . 1 2 1 1 . . . . 4 . . 3 . 5 3 4 1 6 13 57 18 Attach 153 | . 4 1 2 1 2 . 4 1 . . 4 . 2 4 2 4 3 . 1 1 1 2 . . . . 4 . . 1 . 6 2 1 5 4 8 43 40 Detach 81 | 1 2 . . . . . . . . . . . . 3 . . . . 1 . . 1 . . . . 1 . . 2 . 2 1 . 1 . 6 34 26 Swap 208 | . 15 12 5 7 3 . 4 3 . 2 11 . 5 4 15 17 2 . 2 . . 4 2 . 2 5 19 3 1 4 . 19 6 2 8 2 2 19 3 Drop 296 | 1 13 10 1 2 3 . 20 1 1 . 5 . 4 6 1 3 3 3 2 8 2 2 . . . 1 6 2 3 5 . 23 6 3 6 6 17 87 40 Fire 772 | 13 61 14 5 27 . . 6 17 . 5 8 3 7 4 46 47 29 . 5 . 15 10 1 3 4 13 29 3 6 1 7 . 4 4 2 6 12 92 263 Melee 361 | . . 3 3 25 . 1 12 2 . . 15 1 6 . 14 35 . 3 . 6 7 17 2 1 1 8 30 10 13 . 5 23 11 15 13 22 21 36 . Ram . | . . . . . . . . . . . . . . . . . . . . . . . . . . . . . . . . . . . . . . . . Kick . | . . . . . . . . . . . . . . . . . . . . . . . . . . . . . . . . . . . . . . . . Crush 57 | . 8 16 . 3 . . . . . . . . . . . 3 . . . . . . . . . . . . . . . . . . . . . . 27 Escape Stasis 46 | . . . . . . . . 3 . 2 2 . . . . . . . 14 . 8 . . . . . . . . . . . . . . . 4 13 . Rewire 13 | . . . . . . . . . . . . . . . 13 . . . . . . . . . . . . . . . . . . . . . . . . Trap 5 | . . 5 . . . . . . . . . . . . . . . . . . . . . . . . . . . . . . . . . . . . . Miscellaneous 5 | . . . . . . . . . . . . . . . . . . . . . . 3 . . . . 2 . . . . . . . . . . . . Route ------- -11/Scrapyard -10/Materials (discovered 5 exits: *Mat x3 / *Min x2) -10/Mines -9/Materials -9/Mines (discovered 3 exits: *Mat x2 / *Exi) -9/Exiles -8/Mines -8/Materials (discovered 2 exits: *Fac / Gar) -8/Garrison (discovered 2 exits: *Mat x2) -8/Materials -8/Garrison -7/Factory -7/Lower Caves -7/Lower Caves (discovered 2 exits: *Fac / *Dat) -7/Data Miner -6/Proximity Caves -6/Factory (discovered 2 exits: Low x2) -6/Waste -6/Factory -6/Garrison -6/Factory (discovered 5 exits: Fac x4 / Gar) -6/Garrison (discovered 2 exits: *Fac x2) -5/Factory (discovered 2 exits: *Upp x2) -5/Upper Caves -5/Upper Caves -5/Warlord -4/Proximity Caves -4/Factory (discovered 6 exits: *Res / *Upp x2 / *Ext x2 / Arm) -4/Upper Caves -4/Upper Caves -4/Zhirov -3/Proximity Caves -3/Research (discovered 5 exits: Res x3 / *Qua x2) -3/Quarantine -2/Research (discovered 2 exits: *Tes x2) -2/Testing (discovered 2 exits: *Acc / [*Sec]) -2/Section 7 -1/Access -1/Command (discovered 3 exits: [*Sur x2] / [*Ac0]) -1/Access_0 0b11 Command History --------- Turn | Location | Event 2 | -11/Scrapyard | Discovered new exit (range 16) 154 | -11/Scrapyard | Entered Materials 311 | -10/Materials | Build established: Mutant 355 | -10/Materials | Identified exit to Mines 550 | -10/Materials | Discovered new exit (range 3) 734 | -10/Materials | Discovered new exit (range 3) 924 | -10/Materials | Discovered new exit (range 10) 1047 | -10/Materials | Repaired Grenade Launcher 1263 | -10/Materials | Entered Mines 1266 | -10/Mines | Assembled infested the area 1271 | -10/Mines | Assisted by a Guerilla fighting off Assembled 1758 | -10/Mines | Learned Materials stockpile data 1819 | -10/Mines | Received a Rocket Launcher from a helpful Derelict 1846 | -10/Mines | A weapon hastily lodged in a ceiling crevice suddenly fell to the ground 1938 | -10/Mines | Met a Derelict who couldn't figure out how to use a Trap Extractor 2392 | -10/Mines | Discovered new exit (range 4) 2415 | -10/Mines | Build established: Hauler-Mutant 2702 | -10/Mines | Entered Materials 2702 | -9/Materials | Evolved 2 slots: Utility x2 2753 | -9/Materials | Repaired Lgt. Treads? 2834 | -9/Materials | Discovered new exit (range 15) 2929 | -9/Materials | Entered Mines 2995 | -9/Mines | Discovered new exit (range 10) 3034 | -9/Mines | Learned location of Zion (-6) 4022 | -9/Mines | Discovered new exit (range 10) 4025 | -9/Mines | Received a Mining Laser from a helpful Derelict 4252 | -9/Mines | Deemed a non-threat by the Exiles lab entrance 4252 | -9/Mines | Discovered new exit (range 5) 4260 | -9/Mines | Entered Exiles 4315 | -9/Exiles | Met 8R-AWN 4345 | -9/Exiles | Met EX-HEX 4479 | -9/Exiles | Met EX-DEC 4680 | -9/Exiles | Met EX-BIN 4704 | -9/Exiles | Aligned with FarCom system 4706 | -9/Exiles | Given EX-Vault access code 4752 | -9/Exiles | Opened EX-Vault 4764 | -9/Exiles | Found Field Lobotomy Kit 4809 | -9/Exiles | Warned to stay clear of 0b10 Research branches 4948 | -9/Exiles | Discovered new exit (range 15) 4974 | -9/Exiles | Left Exiles lab with Field Lobotomy Kit 4974 | -9/Exiles | Entered Mines 5234 | -8/Mines | Discovered new exit (range 9) 5358 | -8/Mines | Entered Materials 5358 | -8/Materials | Evolved 2 slots: Propulsion x2 5899 | -8/Materials | Discovered new exit (range 9) 5996 | -8/Materials | Identified exit to Garrison 5996 | -8/Materials | Entered Garrison 6084 | -8/Garrison | Triggered checkpoint 6088 | -8/Garrison | Triggered checkpoint 6130 | -8/Garrison | Destroyed 7 combat bots 6172 | -8/Garrison | Discovered new exit (range 8) 6244 | -8/Garrison | Discovered new exit (range 10) 6263 | -8/Garrison | Installed Relay Interface Framework 6268 | -8/Garrison | Entered Materials 6304 | -8/Materials | Identified exit to Garrison 6304 | -8/Materials | Entered Garrison 6310 | -8/Garrison | Expanded RIF knowledge: Command Fork 6404 | -8/Garrison | Destroyed 7 combat bots 6420 | -8/Garrison | Triggered checkpoint 6452 | -8/Garrison | Discovered new exit (range 11) 6464 | -8/Garrison | Entered Factory 6464 | -7/Factory | Evolved 2 slots: Utility x2 7149 | -7/Factory | Discovered new exit (range 6) 7158 | -7/Factory | Identified exit to Lower Caves 7183 | -7/Factory | Entered Lower Caves 7270 | -7/Lower Caves | Encountered a Warlord checkpoint 7450 | -7/Lower Caves | Learned Factory terminal intel 7465 | -7/Lower Caves | Discovered new exit (range 14) 7533 | -7/Lower Caves | Learned Factory trap positions 7563 | -7/Lower Caves | Entered another Lower Caves area 7563 | -7/Lower Caves | Discovered new exit (range 11) 7690 | -7/Lower Caves | Attracted the attention of an 0b10 checkpoint 7818 | -7/Lower Caves | Found Alien Artifact 7818 | -7/Lower Caves | Identified Core Expander 7818 | -7/Lower Caves | Installed Core Expander, added new Propulsion slot 7890 | -7/Lower Caves | Discovered new exit (range 10) 7903 | -7/Lower Caves | Identified exit to Data Miner 7933 | -7/Lower Caves | Entered Data Miner 7933 | -7/Data Miner | Discovered new exit (range 6) 7958 | -7/Data Miner | Met Data Miner 7983 | -7/Data Miner | Learned location of Section 7 (-2) 7983 | -7/Data Miner | Acquired the access code to Warlord's prototype stash 8004 | -7/Data Miner | Received God Mode back door access code from Data Miner 8088 | -7/Data Miner | Assimilated Data Miner with FLK Orb 8143 | -7/Data Miner | Destroyed Data Miner 8149 | -7/Data Miner | Found Prototype Hackware 8151 | -7/Data Miner | Found Prototype Hackware 8154 | -7/Data Miner | Found Prototype Hackware 8225 | -7/Data Miner | Entered Proximity Caves 8370 | -6/Proximity Caves | Attracted the attention of an 0b10 outpost 9089 | -6/Proximity Caves | Discovered new exit (range 12) 9103 | -6/Proximity Caves | Entered Factory 9103 | -6/Factory | Evolved 2 slots: Utility x2 9104 | -6/Factory | Loaded intel: 97 trap records 9105 | -6/Factory | Loaded intel: 20 terminal locations 9370 | -6/Factory | Fabricated Mni. Smartbomb Launcher? 9490 | -6/Factory | Fabricated Mni. Smartbomb Launcher (x1) 9742 | -6/Factory | Identified Quantum Router 9744 | -6/Factory | Identified exit to Lower Caves 9745 | -6/Factory | Identified Ghost Barrier 9747 | -6/Factory | Identified Deep Network Scanner 9748 | -6/Factory | Central database locked down 9962 | -6/Factory | Destroyed 8 combat bots 10055 | -6/Factory | Build established: Wizard-Mutant 10150 | -6/Factory | Sucked down chute 10150 | -6/Factory | Entered Waste 10151 | -6/Waste | Met a frightened Derelict 10165 | -6/Waste | EMP discharged 10166 | -6/Waste | Destroyed C-40 Crusher 10186 | -6/Waste | Spotted C-40 Crusher 10190 | -6/Waste | Spotted C-40 Crusher 10239 | -6/Waste | Destroyed C-40 Crusher 10241 | -6/Waste | Spotted C-40 Crusher 10253 | -6/Waste | Destroyed C-40 Crusher 10264 | -6/Waste | Destroyed C-40 Crusher 10265 | -6/Waste | EMP discharged 10265 | -6/Waste | System corruption reached 10% 10268 | -6/Waste | Spotted C-40 Crusher 10270 | -6/Waste | Spotted C-40 Crusher 10277 | -6/Waste | Destroyed C-40 Crusher 10284 | -6/Waste | Destroyed C-40 Crusher 10358 | -6/Waste | Discovered new exit (range 12) 10365 | -6/Waste | EMP discharged 10374 | -6/Waste | Entered Factory 10422 | -6/Factory | Identified exit to Garrison 10449 | -6/Factory | Fabricated Combat Drone Bay? 10498 | -6/Factory | Entered Garrison 10582 | -6/Garrison | Triggered checkpoint 10584 | -6/Garrison | Triggered checkpoint 10603 | -6/Garrison | Triggered checkpoint 10665 | -6/Garrison | Discovered new exit (range 8) 10695 | -6/Garrison | Expanded RIF knowledge: Signal Jamming 10702 | -6/Garrison | Entered Factory 10895 | -6/Factory | Identified exit to Factory 11047 | -6/Factory | Identified exit to Garrison 11052 | -6/Factory | First assault squad dispatched 11069 | -6/Factory | Entered Garrison 11069 | -6/Garrison | Accompanied by 1 ally 11136 | -6/Garrison | Triggered checkpoint 11150 | -6/Garrison | Triggered checkpoint 11157 | -6/Garrison | Triggered checkpoint 11192 | -6/Garrison | Destroyed 8 combat bots 11248 | -6/Garrison | Discovered exit to Factory (range 10) 11264 | -6/Garrison | Expanded RIF knowledge: Coupler Efficiency 11433 | -6/Garrison | Triggered checkpoint 11464 | -6/Garrison | Discovered exit to Factory (range 14) 11536 | -6/Garrison | Garrison Relay disabled 11604 | -6/Garrison | Entered Factory 11604 | -5/Factory | Accompanied by 1 ally 11604 | -5/Factory | Evolved 2 slots: Utility x2 11651 | -5/Factory | Identified exit to Upper Caves 11853 | -5/Factory | Found Quantum Capacitor 12001 | -5/Factory | Fabricated Combat Drone Bay (x1) 12050 | -5/Factory | Fabricated Combat Drone Bay (x1) 12085 | -5/Factory | Fabricated Combat Drone Bay? 12284 | -5/Factory | Fabricated S-27 Virus? 12424 | -5/Factory | Entered Upper Caves 12424 | -5/Upper Caves | Accompanied by 8 allies 12643 | -5/Upper Caves | Discovered new exit (range 14) 12672 | -5/Upper Caves | Identified exit to Upper Caves 12689 | -5/Upper Caves | Learned Factory non-interactive machine intel 12710 | -5/Upper Caves | Entered another Upper Caves area 12710 | -5/Upper Caves | Accompanied by 8 allies 12737 | -5/Upper Caves | Learned Factory stockpile data 12739 | -5/Upper Caves | Spotted B-75 Beast 12742 | -5/Upper Caves | Destroyed B-75 Beast 12895 | -5/Upper Caves | Learned Factory stockpile data 13016 | -5/Upper Caves | Discovered new exit (range 8) 13029 | -5/Upper Caves | Identified exit to Warlord 13069 | -5/Upper Caves | Encountered a Warlord checkpoint 13173 | -5/Upper Caves | Entered Warlord 13173 | -5/Warlord | Accompanied by 5 allies 13252 | -5/Warlord | System corruption cleaned by Quarantine Array 13256 | -5/Warlord | RIF detected upon attempting to enter Warlord's base 13256 | -5/Warlord | Attacked by Warlord forces 13289 | -5/Warlord | Discovered new exit (range 9) 13298 | -5/Warlord | Identified exit to Proximity Caves 13301 | -5/Warlord | Entered Proximity Caves 13301 | -4/Proximity Caves | Accompanied by 2 allies 13725 | -4/Proximity Caves | Learned 4 Research zone layouts 13877 | -4/Proximity Caves | Discovered new exit (range 6) 13883 | -4/Proximity Caves | Identified exit to Factory 13889 | -4/Proximity Caves | Entered Factory 13889 | -4/Factory | Accompanied by 2 allies 13889 | -4/Factory | Evolved 2 slots: Utility x2 13891 | -4/Factory | Loaded intel: 198 non-interactive machine locations 14101 | -4/Factory | Identified exit to Upper Caves 14101 | -4/Factory | Identified exit to Extension 14101 | -4/Factory | Identified exit to Armory 14101 | -4/Factory | Central database locked down 14252 | -4/Factory | Discovered new exit (range 8) 14259 | -4/Factory | Identified exit to Research 14542 | -4/Factory | Garrison activated, responded to threat 14639 | -4/Factory | First assault squad dispatched 14718 | -4/Factory | Fabricated Combat Drone Bay? 14824 | -4/Factory | Fabricated Combat Drone Bay (x1) 14838 | -4/Factory | Entered Upper Caves 14838 | -4/Upper Caves | Accompanied by 6 allies 14873 | -4/Upper Caves | Learned location of Testing (-2) 15316 | -4/Upper Caves | Discovered new exit (range 18) 15337 | -4/Upper Caves | Identified exit to Upper Caves 15339 | -4/Upper Caves | Entered another Upper Caves area 15339 | -4/Upper Caves | Accompanied by 6 allies 15380 | -4/Upper Caves | Learned 4 Research zone layouts 15717 | -4/Upper Caves | Discovered new exit (range 5) 15849 | -4/Upper Caves | Identified exit to Zhirov 15851 | -4/Upper Caves | Entered Zhirov 15851 | -4/Zhirov | Accompanied by 6 allies 15851 | -4/Zhirov | Discovered new exit (range 3) 15889 | -4/Zhirov | Learned location of Quarantine (-3) 15889 | -4/Zhirov | Learned location of Command (-1) 15930 | -4/Zhirov | Found Alien Artifact 15943 | -4/Zhirov | Found Alien Artifact 16033 | -4/Zhirov | Identified exit to Proximity Caves 16035 | -4/Zhirov | Cloak Generator disabled 16048 | -4/Zhirov | Entered Proximity Caves 16048 | -3/Proximity Caves | Accompanied by 6 allies 16348 | -3/Proximity Caves | Discovered exit to Research (range 21) 16379 | -3/Proximity Caves | Entered Research 16379 | -3/Research | Accompanied by 2 allies 16379 | -3/Research | Evolved 2 slots: Utility x2 16380 | -3/Research | Identified exit to Quarantine 16380 | -3/Research | Identified exit to Research 16446 | -3/Research | Repaired Mni. Smartbomb Launcher 16494 | -3/Research | Identified Transdimensional Reconstructor 16494 | -3/Research | Identified Integrated Reactor 16722 | -3/Research | Garrison activated, responded to threat 16725 | -3/Research | P-80 Master assimilated allied G-67 Veteran 17053 | -3/Research | Spotted B-86 Titan 17068 | -3/Research | Destroyed B-86 Titan 17139 | -3/Research | Found Enh. Force Lance 17155 | -3/Research | Entered Quarantine 17156 | -3/Quarantine | Maximum security lockdown engaged 17168 | -3/Quarantine | Found Phase Redirector 17178 | -3/Quarantine | Found Subatomic Replicator 17179 | -3/Quarantine | Used Subatomic Replicator to replicate Integrated Reactor 17181 | -3/Quarantine | Installed Integrated Reactor, increased core energy generation (+10) 17182 | -3/Quarantine | Installed Integrated Reactor, increased core energy generation (+10) 17210 | -3/Quarantine | Found Dimensional Node Initializer 17210 | -3/Quarantine | Initialized slip node 17212 | -3/Quarantine | Found Dimensional Node Initializer 17214 | -3/Quarantine | Found Transdimensional Reconstructor 17220 | -3/Quarantine | Found Hpw. Transdimensional Reconstructor 17221 | -3/Quarantine | Found Transdimensional Reconstructor 17223 | -3/Quarantine | Found Hpw. Transdimensional Reconstructor 17239 | -3/Quarantine | Spotted Alpha 7 17247 | -3/Quarantine | Found Sigix Terminator 17263 | -3/Quarantine | Discovered exit to Research (range 7) 17265 | -3/Quarantine | Entered Research 17265 | -2/Research | Evolved 2 slots: Power x1, Propulsion x1 17299 | -2/Research | Identified exit to Testing 17346 | -2/Research | Build established: Wizard-Sprinter 17399 | -2/Research | Entered Testing 17400 | -2/Testing | Maximum security lockdown engaged 17403 | -2/Testing | Spotted PP-XMO8ZPY8SQ 17427 | -2/Testing | Spotted Striker 17428 | -2/Testing | Spotted Striker 17433 | -2/Testing | Found Potential Cannon 17434 | -2/Testing | Found Potential Cannon 17451 | -2/Testing | Found AEGIS Remote Shield 17454 | -2/Testing | Warped through subspace 17498 | -2/Testing | Discovered new exit (range 11) 17508 | -2/Testing | Warped through subspace 17583 | -2/Testing | Spotted Fortress 17601 | -2/Testing | Discovered new exit (range 5) 17605 | -2/Testing | Entered Section 7 17606 | -2/Section 7 | Maximum security lockdown engaged 17661 | -2/Section 7 | Spotted S7 Guard 17664 | -2/Section 7 | Found Integrated Singularity Reactor 17665 | -2/Section 7 | Warped through subspace 17668 | -2/Section 7 | Installed Integrated Singularity Reactor, increased core energy generation (+20) 17713 | -2/Section 7 | Spotted S7 Guard 17716 | -2/Section 7 | Found Integrated Heat Negator 17716 | -2/Section 7 | Installed Integrated Heat Negator, increased core heat dissipation (+40) 17727 | -2/Section 7 | Spotted Alpha 7 17730 | -2/Section 7 | Spotted Alpha 7 17734 | -2/Section 7 | Spotted B-99 Colossus 17743 | -2/Section 7 | Found Integrated Dissipator 17743 | -2/Section 7 | Installed Integrated Dissipator, increased core heat dissipation (+20) 17745 | -2/Section 7 | Found Integrated Dissipator 17745 | -2/Section 7 | Installed Integrated Dissipator, increased core heat dissipation (+20) 17747 | -2/Section 7 | Found Integrated Dissipator 17747 | -2/Section 7 | Installed Integrated Dissipator, increased core heat dissipation (+20) 17765 | -2/Section 7 | Warped through subspace 17777 | -2/Section 7 | Found Hpw. Transdimensional Reconstructor 17782 | -2/Section 7 | Found Transdimensional Reconstructor 17783 | -2/Section 7 | Found Transdimensional Reconstructor 17786 | -2/Section 7 | Found Matter Drive 17792 | -2/Section 7 | Found Matter Drive 17797 | -2/Section 7 | Found Matter Drive 17821 | -2/Section 7 | Spotted S7 Guard 17829 | -2/Section 7 | Spotted B-90 Cyclops 17851 | -2/Section 7 | Spotted Executioner 17851 | -2/Section 7 | Spotted Striker 17854 | -2/Section 7 | Spotted B-90 Cyclops 17858 | -2/Section 7 | Discovered new exit (range 8) 17864 | -2/Section 7 | Entered Access 17864 | -1/Access | Evolved 2 slots: Utility x2 17883 | -1/Access | Found Exp. ECM Suite 17932 | -1/Access | Found Quantum Capacitor 17991 | -1/Access | Warped through subspace 18040 | -1/Access | Spotted B-99 Colossus 18114 | -1/Access | First assault squad dispatched 18227 | -1/Access | Destroyed 10 combat bots 18312 | -1/Access | Spotted B-99 Colossus 18429 | -1/Access | Spotted B-99 Colossus 18447 | -1/Access | Discovered new exit (range 7) 18518 | -1/Access | Entered Command 18605 | -1/Command | Build established: Wizard-Mutant 18627 | -1/Command | Found Antimissile System 18661 | -1/Command | Repaired Nanoactuators 18737 | -1/Command | Repaired Nanoactuators 18781 | -1/Command | Found Unknown Launcher 18781 | -1/Command | Identified Fusion Bomb Launcher 18928 | -1/Command | Found EM Disruption Field 19069 | -1/Command | Assimilated H-88 Terminator with FLK Orb 19072 | -1/Command | Assimilated H-88 Terminator with FLK Orb 19107 | -1/Command | Repaired Enh. Force Lance 19154 | -1/Command | Spotted M Guard 19154 | -1/Command | Spotted M Guard 19154 | -1/Command | Spotted Combat Programmer 19173 | -1/Command | Spotted Combat Programmer 19176 | -1/Command | Destroyed M Guard 19180 | -1/Command | Assimilated Combat Programmer with FLK Orb 19195 | -1/Command | Destroyed M Guard 19232 | -1/Command | Lost 3 parts (1p1n1w) 19234 | -1/Command | Found Prototype Launcher 19234 | -1/Command | Identified Ragnarok Missile Launcher 19236 | -1/Command | Found Prototype Reactor 19236 | -1/Command | Identified Zero-point Reactor 19248 | -1/Command | Assimilated H-88 Terminator with FLK Orb 19264 | -1/Command | Found Prototype Energy Cannon 19264 | -1/Command | Identified EMDS 19282 | -1/Command | Found Prototype Protection 19282 | -1/Command | Identified Hvy. Regenerative Plating 19298 | -1/Command | Found Zero-point Reactor 19301 | -1/Command | Found AEGIS Remote Shield 19306 | -1/Command | Found Prototype Device 19306 | -1/Command | Identified Thermal Barrier 19317 | -1/Command | Found Zero-point Reactor 19376 | -1/Command | Met MAIN.C 19376 | -1/Command | 0b10 Conduit disabled 19378 | -1/Command | Allies destroyed MAIN.C Shell 19379 | -1/Command | MAIN.C activated Command garrisons 19435 | -1/Command | Destroyed MAIN.C 19452 | -1/Command | Destroyed all MAIN.C guards 19532 | -1/Command | Build established: Scavenger-Mutant 19544 | -1/Command | Found Gamma Refractor 19688 | -1/Command | Discovered new exit (range 13) 20388 | -1/Command | Spotted B-99 Colossus 20821 | -1/Command | Found AEGIS Remote Shield 23204 | -1/Command | Found Prototype Ballistic Gun 23204 | -1/Command | Identified Multirail 23255 | -1/Command | Found Prototype Processor 23269 | -1/Command | Discovered new exit (range 8) 23286 | -1/Command | Found Prototype Processor 23542 | -1/Command | Found Prototype Processor 23542 | -1/Command | Identified Exp. Targeting Computer (x3) 24304 | -1/Command | Found Vortex Chain Reactor 24331 | -1/Command | Found Prototype Ballistic Gun 24331 | -1/Command | Identified Hyp. Multirail 24344 | -1/Command | Found Prototype Device 24344 | -1/Command | Identified Exp. Cloaking Device 24350 | -1/Command | Found Prototype Device 24350 | -1/Command | Identified Exp. Phase Shifter 24355 | -1/Command | Found Adv. Particle Accelerator 24360 | -1/Command | Found Adv. Particle Accelerator 24376 | -1/Command | Found Zero-point Reactor 24379 | -1/Command | Found Vortex Chain Reactor 24458 | -1/Command | Warped through subspace to slip node 24458 | -1/Command | Discovered new exit (range 4) 24473 | -1/Command | Entered Access_0 24474 | -1/Access_0 | Architect warped through subspace 24484 | -1/Access_0 | Destroyed A8 24567 | -1/Access_0 | Architect warped through subspace 24588 | -1/Access_0 | Build established: Hauler-Mutant 24592 | -1/Access_0 | Architect warped through subspace 24625 | -1/Access_0 | Subspace Access Node disabled 24630 | -1/Access_0 | A6 warped into view 24635 | -1/Access_0 | Destroyed A6 24664 | -1/Access_0 | Architect warped through subspace 24741 | -1/Access_0 | Architect warped through subspace 24757 | -1/Access_0 | Architect warped through subspace 24777 | -1/Access_0 | Architect warped through subspace 24791 | -1/Access_0 | Architect warped through subspace 24805 | -1/Access_0 | Architect warped through subspace 24831 | -1/Access_0 | Architect warped through subspace 24852 | -1/Access_0 | Architect warped through subspace 24870 | -1/Access_0 | Subspace Access Node disabled 24884 | -1/Access_0 | Architect warped through subspace 24910 | -1/Access_0 | Architect warped through subspace 24928 | -1/Access_0 | Architect warped through subspace 25000 | -1/Access_0 | Architect warped through subspace 25067 | -1/Access_0 | Architect warped through subspace 25127 | -1/Access_0 | Architect warped through subspace 25129 | -1/Access_0 | Subspace Access Node disabled 25181 | -1/Access_0 | Architect warped through subspace 25209 | -1/Access_0 | A5 warped into view 25223 | -1/Access_0 | Destroyed A5 25231 | -1/Access_0 | Architect warped through subspace 25274 | -1/Access_0 | Architect warped through subspace 25313 | -1/Access_0 | Architect warped through subspace 25352 | -1/Access_0 | Destroyed A2 25362 | -1/Access_0 | Architect warped through subspace 25400 | -1/Access_0 | Architect warped through subspace 25431 | -1/Access_0 | Architect warped through subspace 25455 | -1/Access_0 | Architect warped through subspace 25476 | -1/Access_0 | Architect warped through subspace 25491 | -1/Access_0 | Architect warped through subspace 25502 | -1/Access_0 | Architect warped through subspace 25523 | -1/Access_0 | Architect warped through subspace 25541 | -1/Access_0 | Architect warped through subspace 25557 | -1/Access_0 | Architect warped through subspace 25569 | -1/Access_0 | Architect warped through subspace 25576 | -1/Access_0 | Architect warped through subspace 25582 | -1/Access_0 | Architect warped through subspace 25588 | -1/Access_0 | Architect warped through subspace 25594 | -1/Access_0 | Subspace Access Node disabled 25817 | -1/Access_0 | Build established: Mutant 25951 | -1/Access_0 | A4 warped into view 25958 | -1/Access_0 | Destroyed A4 26103 | -1/Access_0 | Singularity Gate disabled 26404 | -1/Access_0 | Destroyed Architect 26531 | -1/Access_0 | Found Prototype Processor 26531 | -1/Access_0 | Identified Spectral Analyzer 26584 | -1/Access_0 | Found Exp. Core Analyzer 26814 | -1/Access_0 | Build established: Scavenger-Mutant 26827 | -1/Access_0 | Found Integrated Reactor 26827 | -1/Access_0 | Installed Integrated Reactor, increased core energy generation (+10) 26916 | -1/Access_0 | Found Prototype Protection 26916 | -1/Access_0 | Identified Exp. Powered Armor 26921 | -1/Access_0 | Found Exp. Powered Armor 27095 | -1/Access_0 | Found Alien Artifact 27095 | -1/Access_0 | Identified Integrity Redistributor 27095 | -1/Access_0 | Used Integrity Redistributor, redistributed integrity from core (-263) 27096 | -1/Access_0 | Core integrity fell below 50% 27506 | -1/Access_0 | A3 warped into view 27512 | -1/Access_0 | Destroyed A3 27565 | -1/Access_0 | Warped through subspace to slip node 27565 | -1/Access_0 | Discovered new exit (range 8) 27603 | -1/Access_0 | Triggered Gamma Refractor 27620 | *** | Establishing 0b11! Last Messages --------------- 27511_ Extracted 267 energy. 27511_ Penetrated by HV Slug. 27511_ Exp. Phase Shifter destroyed. 27511_ HV Slug penetrates Earth. 27512_ Extracted 15 energy. 27512_ Activated siege mode. 27512_ A3: "How even..." 27512_ A3 destroyed. 27513_ Extracted 114 energy. 27518_ Ended siege mode. 27519_ Acquired Exp. Energy Well. 27541_ 8:0DUDK 27602_ Dropped Gamma Refractor. 27603_ The unstable cave ceiling collapses. 27603_ Triggered Gamma Refractor. 27604_ The unstable cave ceiling collapses. Map ----- +----------------------------------------------------+ | | | | | | | | | | | | | | | | | | | | | | | | | | | | | | | | | ?????# #?????? | | ?????# ##????? | | ????# #????? | | ????# ##???? | | ???? #???? | | ???# #???? | | ???# ; ; ##??? | | ??? ; ; #??? | | ??# ; #??? | | ?? @ ; #?? | | ?? ; ; #?? | | ?? ; #? | | ?? #? | | ?? # #? | | ?? # ? | | ?? # ? | | ?? ? | | ? ## ? | | ? # ? | | ? # ?? | | ?? # # ?? | | ?? ?? | | ?? ??? | | ??? ??? | | ??? ??? | | ??? ???? | | ???? ???? | | ???? ????? | | ????? ????? | | ????? ????? | | ????? ?????? | | ?????? ?????? | | ?????? ??????? | | ??????? ??????? | +----------------------------------------------------+ Best States ------------- Heat Dissipation 152 Coolant Potential 220 Energy Generation 105 Energy Capacity 3380 Matter Stores 300 Matter Capacity 300 Sight Range 24 Robot Scan Range 22 Terrain Scan Range 16 Terrain Scan Density 60 ECM Strength 5 Cloak Strength 3 Power Amplification 30 Armor Coverage 1400 Resistance: KI 25 Resistance: EM 50 Core Shielding 30 Propulsion Shielding 66 Utility Shielding 90 Weapon Shielding 90 Point Defense Rating 240 Weapon Cycling 25 Melee Speed Boost 50 Phase Shifting 20 Evasion (%) 61 Targeting Accuracy 24 Melee Accuracy 8 Core Analysis 15 Armor Integrity Analysis 66 Recoil Reduction 6 Particle Charging 50 Force Boost 4 Salvage Targeting 2 Offensive Hacking 37 Defensive Hacking 45 Relay Coupler Types 23 Relay Coupler Value 1 Item Schematics ----------------- Imp. Utility Shielding | -9/Materials | Scanalyzed Hrd. Heavy Armor Plating | -8/Materials | Scanalyzed Fission Core | -8/Materials | Scanalyzed Combat Drone Bay | -7/Data Miner | Free Lgt. Regenerative Plating | -7/Data Miner | Free Cmb. Gravmag System | -7/Data Miner | Free Exp. Terrain Scan Processor | -7/Data Miner | Free Tactical Coordination Suite | -7/Data Miner | Free Exp. ECM Suite | -7/Data Miner | Free Cloaking Device | -7/Data Miner | Free Mni. Smartbomb Launcher | -7/Data Miner | Free Plasma Sword | -7/Data Miner | Free Exp. Cooling System | -6/Factory | Scanalyzed Drone Bay | -6/Factory | Scanalyzed Imp. Propulsion Shielding | -6/Factory | Scanalyzed Mic. Nuclear Core | -6/Factory | Scanalyzed Imp. Armor Integrity Analyzer | -6/Factory | Hacked Neutrino Core | -6/Factory | Hacked Enh. Force Lance | -5/Factory | Hacked Centrium Wheel | -5/Factory | Hacked Smartbomb Launcher | -5/Factory | Hacked Adv. Hacking Suite | -5/Factory | Hacked Field Propulsion Drive | -5/Factory | Hacked Biometal Leg | -5/Factory | Hacked Imp. Antigrav System | -5/Factory | Hacked Adv. Melee Analysis Suite | -4/Factory | Scanalyzed Tri-rail Accelerator | -4/Factory | Scanalyzed Exp. Cesium-ion Thruster | -4/Upper Caves | Hacked Gravity Neutralizing Apparatus | -4/Upper Caves | Hacked Cld. Cesium-ion Thruster | -4/Upper Caves | Hacked Nanoactuators | -4/Upper Caves | Hacked Assault Drone Bay | -4/Zhirov | Free Exp. Heat Sink | -4/Zhirov | Free Exp. Optical Array | -4/Zhirov | Free Imp. Arc Thrower | -4/Zhirov | Free Cld. Gravmag System | -3/Research | Scanalyzed Med. Storage Unit | -3/Research | Scanalyzed System Backup Module | -3/Research | Scanalyzed Robot Schematics ------------------ S-27 Virus | -7/Data Miner | Free G-50 Soldier | -7/Data Miner | Free G-67 Veteran | -7/Data Miner | Free L-41 Fighter | -7/Data Miner | Free X-72 Disruptor | -7/Data Miner | Free H-66 Slayer | -7/Data Miner | Free P-70 Sage | -7/Data Miner | Free I-36 Angel | -7/Data Miner | Free I-47 Archangel | -7/Data Miner | Free R-10 Processor | -6/Factory | Hacked Fabricated ------------ Mni. Smartbomb Launcher | x1 | -6/Factory Mni. Smartbomb Launcher | x1 | -6/Factory Combat Drone Bay | x1 | -6/Factory Combat Drone Bay | x1 | -5/Factory Combat Drone Bay | x1 | -5/Factory Combat Drone Bay | x1 | -5/Factory S-27 Virus | x4 | -5/Factory Combat Drone Bay | x1 | -4/Factory Combat Drone Bay | x1 | -4/Factory Alien Tech Used ----------------- Core Expander Subatomic Replicator Integrated Reactor Dimensional Node Initializer High-powered Transdimensional Reconstructor Transdimensional Reconstructor Integrated Singularity Reactor Integrated Heat Negator Phase Redirector Integrated Dissipator Matter Drive Sigix Terminator Integrity Redistributor Achievements -------------- None Challenges ------------ None Game ------ Seed SegregatorDroneMace Manual? 0 Play Time 05:45:47 Cumulative 1594.9 hours Start 2020.09.20 @ 10:41:03 End 2020.09.20 @ 17:43:28 Sessions 5 Manual Loads 0 Difficulty Rogue Special Mode None Game No. 2460 Rogue 2453 Adventurer 0 Explorer 7 Win Type 1 Total 142 Types 40/15/58/3/3/4/17/1/1 Lore% 99 Gallery% 98 Achievement% 100 Wizard Run 0 Options --------- ASCII 0 Keyboard 1 Movement Numpad Keybinds 1 Fullscreen 1 Font 18/SmallcapsGlow Map View 76x50 Tactical HUD 1 Map Filters NONE Filters NONE Steam 1 RUN: ee4fa99e-f662-4253-aa89-06b32fa4e3a9